{"text_format":"1","workbook":"xlsx","n_sheets":6,"sheets":["Notes","Summary","STP","Trusts","Sites","BS"],"not_rendered":{"charts":0,"images":0,"macros":1,"external_links":1,"defined_names":5,"comments":0,"pivot_tables":0},"unopened":[],"bounds":{"document_bytes":16777216,"sheet_cells":100000,"rows_first":2000,"rows_last":500,"rows_between":2000,"halvings":0,"cell_chars":16384,"cell_head_chars":4096},"cells_cut":0,"cells_raw":0,"read":"whole","date_system":"1900"}

{"sheet":"Notes","index":0,"n_rows":2,"n_cols":8,"rows_kept":2,"cut":false,"hidden":false,"merged":[[1,1,1,4]]}
[]
[null,"A&E Friends and Family Test (FFT) data - November 2021",null,null,null,null,null,"  Show data for:"]

{"sheet":"Summary","index":1,"n_rows":7,"n_cols":10,"rows_kept":7,"cut":false,"hidden":false,"merged":[[2,1,3,1],[2,4,2,5],[2,6,2,7],[2,8,2,9]]}
[]
[]
[null,"FFT","Number of organisations submitting","Total responses to date","Responses",null,"Percentage Positive",null,"Percentage Negative"]
[null,null,"2021-11-01","2021-11-01","2021-11-01","2021-10-27","2021-11-01","2021-10-27","2021-11-01","2021-10-27"]
[null,"A&E Total",45,11963215,0,112197,"NA",0.7487455101295043,"NA",0.16784762515931798]
[null,"Acute Type 1&2","NA",11440204,104143,105927,0.76324861008421119,0.74683508453935255,0.15838798575036248,0.16913534792829024]
[null,"WiCs & MIUs",23,634105,6951,6270,0.80376924183570708,0.78102073365231262,0.12990936555891239,0.14609250398724083]

{"sheet":"STP","index":2,"n_rows":48,"n_cols":12,"rows_kept":48,"cut":false,"hidden":false,"merged":[[2,6,2,11],[2,0,3,0],[2,1,3,1],[2,2,3,2],[2,3,3,3],[2,4,3,4],[2,5,3,5]]}
[]
[]
["STP Code","STP","Total Responses","Total Eligible","Percentage Positive","Percentage Negative","Breakdown of Responses"]
[null,null,null,null,null,null,"Very Good","Good","Neither Good nor Poor","Poor","Very Poor","Don't Know"]
[null,"England",111094,1117795,0.76578393072533169,0.15660611734207067,63923,21151,7285,6482,10916,1337]
[null,"Selection (excluding suppressed data)",{"$f":"SUBTOTAL(9,C7:C60)","v":111094},{"$f":"SUBTOTAL(9,D7:D60)","v":1117795},{"$f":"IFERROR((G6+H6)/C6, \"-\")","v":0.76578393072533169},{"$f":"IFERROR((J6+K6)/C6, \"-\")","v":0.15660611734207067},{"$f":"SUBTOTAL(9,G7:G60)","v":63923},21151,7285,6482,10916,1337]
["QE1","HEALTHIER LANCASHIRE AND SOUTH CUMBRIA",3232,24482,0.75928217821782173,0.15872524752475248,1821,633,235,204,309,30]
["QF7","SOUTH YORKSHIRE AND BASSETLAW STP",2596,44961,0.77580893682588603,0.13366718027734978,1486,528,212,147,200,23]
["QGH","HEREFORDSHIRE AND WORCESTERSHIRE STP",1743,9939,0.79690189328743544,0.13023522662076878,958,431,115,90,137,12]
["QH8","MID AND SOUTH ESSEX STP",3127,20905,0.76079309242085069,0.1429485129517109,1731,648,266,179,268,35]
["QHG","BEDFORDSHIRE, LUTON AND MILTON KEYNES STP",262,20585,0.8282442748091603,0.11068702290076336,164,53,14,9,20,2]
["QHL","BIRMINGHAM AND SOLIHULL STP",3283,17745,0.68565336582394154,0.22266219920804142,1625,626,240,255,476,61]
["QHM","CUMBRIA AND NORTH EAST STP",1761,67504,0.81998864281658146,0.11527541169789893,1093,351,107,82,121,7]
["QJ2","JOINED UP CARE DERBYSHIRE STP",687,20915,0.80640465793304217,0.12809315866084425,426,128,41,39,49,4]
["QJG","SUFFOLK AND NORTH EAST ESSEX ICS",2216,12720,0.82355595667870041,0.10243682310469314,1361,464,143,99,128,21]
["QJK","DEVON STP",807,30461,0.7608426270136307,0.16480793060718713,450,164,59,66,67,1]
["QJM","LINCOLNSHIRE STP",1270,4836,0.79055118110236222,0.12440944881889764,731,273,101,61,97,7]
["QK1","LEICESTER, LEICESTERSHIRE AND RUTLAND STP",1807,16607,0.72440509131156616,0.20918649695628114,950,359,111,134,244,9]
["QKK","OUR HEALTHIER SOUTH EAST LONDON STP",3360,41991,0.76458333333333328,0.15208333333333332,1711,858,265,198,313,15]
["QKS","KENT AND MEDWAY STP",2786,41114,0.78786791098348885,0.13890882986360373,1670,525,190,167,220,14]
["QM7","HERTFORDSHIRE AND WEST ESSEX STP",602,30704,0.73255813953488369,0.17607973421926909,295,146,46,37,69,9]
["QMF","EAST LONDON HEALTH & CARE PARTNERSHIP (STP)",2923,53739,0.6120424221690044,0.27095449880260009,1286,503,201,224,568,141]
["QMJ","NORTH LONDON PARTNERS IN HEALTH & CARE (STP)",7746,46868,0.80557707203718043,0.1321972631035373,5001,1239,361,349,675,121]
["QMM","NORFOLK AND WAVENEY HEALTH & CARE PARTNERSHIP (STP)",1232,16495,0.7946428571428571,0.14285714285714285,715,264,75,64,112,2]
["QNC","STAFFORDSHIRE & STOKE ON TRENT STP",1989,12770,0.75364504776269481,0.16339869281045752,1085,414,157,140,185,8]
["QNQ","FRIMLEY HEALTH & CARE (STP)",837,15954,0.72520908004778972,0.1863799283154122,406,201,70,48,108,4]
["QNX","SUSSEX HEALTH AND CARE PARTNERSHIP",3951,34287,0.80131612250063278,0.1181979245760567,2471,695,251,189,278,67]
["QOC","SHROPSHIRE AND TELFORD AND WREKIN STP",293,11936,0.83959044368600677,6.4846416382252553E-2,145,101,28,11,8,0]
["QOP","GREATER MANCHESTER HEALTH & SOCIAL CARE PARTNERSHIP",8297,86848,0.75943111968181265,0.16849463661564421,4897,1404,488,488,910,110]
["QOQ","HUMBER, COAST AND VALE STP",2404,23910,0.73544093178036607,0.16638935108153077,1293,475,197,169,231,39]
["QOX","BATH AND NORTH EAST SOMERSET, SWINDON AND WILTSHIRE STP",1144,15848,0.78146853146853146,0.15122377622377622,698,196,67,76,97,10]
["QPM","NORTHAMPTONSHIRE STP",1710,14978,0.76198830409356721,0.15847953216374269,962,341,119,101,170,17]
["QR1","GLOUCESTERSHIRE STP",1343,6439,0.67982129560685034,0.20997766195085629,602,311,141,83,199,7]
["QRL","HAMPSHIRE AND THE ISLE OF WIGHT STP",3019,30049,0.84133819145412392,0.10003312355084465,2085,455,158,131,171,19]
["QRV","NORTH WEST LONDON HEALTH & CARE PARTNERSHIP (STP)",5183,41454,0.7956781786610071,0.14180976268570325,3180,944,296,277,458,28]
["QSL","SOMERSET STP",54,15755,0.92592592592592593,5.5555555555555552E-2,45,5,1,1,2,0]
["QT1","NOTTINGHAM AND NOTTINGHAMSHIRE HEALTH AND CARE STP",1296,17396,0.88811728395061729,6.7901234567901231E-2,938,213,56,28,60,1]
["QT6","CORNWALL AND THE ISLES OF SCILLY HEALTH & SOCIAL CARE PARTNERSHIP (STP)",846,4623,0.86052009456264777,8.7470449172576833E-2,562,166,42,41,33,2]
["QU9","BUCKINGHAMSHIRE, OXFORDSHIRE AND BERKSHIRE WEST STP",3038,23166,0.73469387755102045,0.16392363396971693,1602,630,267,205,293,41]
["QUA","THE BLACK COUNTRY AND WEST BIRMINGHAM STP",3843,23266,0.69424928441321887,0.2047879260994015,1887,781,270,256,531,118]
["QUE","CAMBRIDGESHIRE AND PETERBOROUGH STP",2674,17803,0.7819745699326851,0.14734480179506357,1587,504,149,157,237,40]
["QUY","BRISTOL, NORTH SOMERSET AND SOUTH GLOUCESTERSHIRE STP",2198,16909,0.78434940855323021,0.14513193812556871,1371,353,127,115,204,28]
["QVV","DORSET STP",1996,11401,0.83366733466933862,0.10621242484969939,1293,371,99,80,132,21]
["QWE","SOUTH WEST LONDON HEALTH & CARE PARTNERSHIP (STP)",5001,39186,0.78544291141771649,0.13997200559888023,2938,990,341,291,409,32]
["QWO","WEST YORKSHIRE AND HARROGATE HEALTH & CARE PARTNERSHIP (STP)",5916,45132,0.71298174442190665,0.20622041920216364,3129,1089,411,411,809,67]
["QWU","COVENTRY AND WARWICKSHIRE STP",3438,23838,0.76497963932518909,0.1620127981384526,1933,697,203,210,347,48]
["QXU","SURREY HEARTLANDS HEALTH & CARE PARTNERSHIP (STP)",1662,13555,0.83393501805054149,0.10589651022864019,1050,336,98,81,95,2]
["QYG","CHESHIRE AND MERSEYSIDE STP",7522,48721,0.74129220951874497,0.18146769476203137,4290,1286,467,489,876,114]

{"sheet":"Trusts","index":3,"n_rows":132,"n_cols":20,"rows_kept":132,"cut":false,"hidden":false,"merged":[[2,6,3,6],[2,7,2,12],[2,13,2,19],[2,0,3,0],[2,1,3,1],[2,2,3,2],[2,3,3,3],[2,4,3,4],[2,5,3,5]]}
[]
[]
["STP Code","Trust Code","Trust Name","Total Responses","Total Eligible","Percentage Positive","Percentage Negative","Breakdown of Responses",null,null,null,null,null,"Mode of Collection"]
[null,null,null,null,null,null,null,"Very Good","Good","Neither Good nor Poor","Poor","Very Poor","Don't Know","Mode SMS","Mode Electronic Discharge","Mode Paper Discharge","Mode Paper Home","Mode Telephone","Mode Online","Mode Other"]
[null,null,"England",111094,1117795,0.76578393072533169,0.15660611734207067,63923,21151,7285,6482,10916,1337,91231,1804,2711,807,6929,6602,1010]
[null,null,"Selection (excluding suppressed data)",{"$f":"SUBTOTAL(9,D7:D999)","v":111094},{"$f":"SUBTOTAL(9,E7:E999)","v":1117795},{"$f":"IFERROR((H6+I6)/D6, \"-\")","v":0.75526131024177723},{"$f":"IFERROR((K6+L6)/D6, \"-\")","v":0.15369866959511766},{"$f":"SUBTOTAL(9,H7:H999)","v":63055},20850,7177,6365,10710,1309,89718,1804,2697,807,6837,6593,1010]
["QE1","RXL","BLACKPOOL TEACHING HOSPITALS NHS FOUNDATION TRUST",294,3708,0.74489795918367352,0.18367346938775511,161,58,21,18,36,0,243,0,43,0,0,8,0]
["QE1","RXR","EAST LANCASHIRE HOSPITALS NHS TRUST",1199,10256,0.66472060050041704,0.22435362802335279,554,243,115,103,166,18,1097,0,73,0,0,29,0]
["QE1","RXN","LANCASHIRE TEACHING HOSPITALS NHS FOUNDATION TRUST",470,3912,0.67446808510638301,0.22127659574468084,215,102,47,45,59,2,417,0,0,8,42,3,0]
["QE1","RTX","UNIVERSITY HOSPITALS OF MORECAMBE BAY NHS FOUNDATION TRUST",1269,6606,0.88337273443656428,6.77698975571316E-2,891,230,52,38,48,10,1106,0,0,0,163,0,0]
["QF7","RFF","BARNSLEY HOSPITAL NHS FOUNDATION TRUST",442,8400,0.81221719457013575,0.10859728506787331,245,114,35,20,28,0,0,442,0,0,0,0,0]
["QF7","RP5","DONCASTER AND BASSETLAW TEACHING HOSPITALS NHS FOUNDATION TRUST",0,13748,"NA","NA",0,0,0,0,0,0,0,0,0,0,0,0,0]
["QF7","RCU","SHEFFIELD CHILDREN'S NHS FOUNDATION TRUST",608,5558,0.81578947368421051,9.5394736842105268E-2,364,132,50,29,29,4,0,0,2,0,605,1,0]
["QF7","RHQ","SHEFFIELD TEACHING HOSPITALS NHS FOUNDATION TRUST",1461,9489,0.75496235455167693,0.15263518138261464,851,252,116,88,135,19,1367,0,0,0,92,2,0]
["QF7","RFR","THE ROTHERHAM NHS FOUNDATION TRUST",85,7766,0.6588235294117647,0.21176470588235294,26,30,11,10,8,0,0,0,78,0,0,7,0]
["QGH","RWP","WORCESTERSHIRE ACUTE HOSPITALS NHS TRUST",1743,9939,0.79690189328743544,0.13023522662076878,958,431,115,90,137,12,1743,0,0,0,0,0,0]
["QGH","RLQ","WYE VALLEY NHS TRUST",0,0,"NA","NA",0,0,0,0,0,0,0,0,0,0,0,0,0]
["QH8","RAJ","MID AND SOUTH ESSEX NHS FOUNDATION TRUST",3127,20905,0.76079309242085069,0.1429485129517109,1731,648,266,179,268,35,2655,0,0,0,326,4,142]
["QHG","RC9","BEDFORDSHIRE HOSPITALS NHS FOUNDATION TRUST",74,12702,0.70270270270270274,0.1891891891891892,41,11,6,2,12,2,0,47,0,0,0,27,0]
["QHG","RD8","MILTON KEYNES UNIVERSITY HOSPITAL NHS FOUNDATION TRUST",188,7883,0.87765957446808507,7.9787234042553196E-2,123,42,8,7,8,0,50,0,120,0,0,18,0]
["QHL","RRK","UNIVERSITY HOSPITALS BIRMINGHAM NHS FOUNDATION TRUST",3283,17745,0.68565336582394154,0.22266219920804142,1625,626,240,255,476,61,3283,0,0,0,0,0,0]
["QHM","RR7","GATESHEAD HEALTH NHS FOUNDATION TRUST",156,6370,0.77564102564102566,0.15384615384615385,93,28,10,11,13,1,154,0,2,0,0,0,0]
["QHM","RNN","NORTH CUMBRIA INTEGRATED CARE NHS FOUNDATION TRUST",99,5270,0.80808080808080807,0.13131313131313133,58,22,5,5,8,1,0,0,1,0,0,98,0]
["QHM","RVW","NORTH TEES AND HARTLEPOOL NHS FOUNDATION TRUST",78,3556,0.78205128205128205,0.12820512820512819,40,21,7,4,6,0,78,0,0,0,0,0,0]
["QHM","RTF","NORTHUMBRIA HEALTHCARE NHS FOUNDATION TRUST",782,12851,0.84015345268542196,0.1010230179028133,499,158,42,26,53,4,598,0,0,184,0,0,0]
["QHM","RTR","SOUTH TEES HOSPITALS NHS FOUNDATION TRUST",462,11563,0.80086580086580084,0.11904761904761904,281,89,36,25,30,1,461,0,1,0,0,0,0]
["QHM","R0B","SOUTH TYNESIDE AND SUNDERLAND NHS FOUNDATION TRUST",0,10874,"NA","NA",0,0,0,0,0,0,0,0,0,0,0,0,0]
["QHM","RTD","THE NEWCASTLE UPON TYNE HOSPITALS NHS FOUNDATION TRUST",184,17020,0.84239130434782605,0.11956521739130435,122,33,7,11,11,0,0,0,183,0,0,1,0]
["QJ2","RFS","CHESTERFIELD ROYAL HOSPITAL NHS FOUNDATION TRUST",497,5587,0.81690140845070425,0.12072434607645875,309,97,28,27,33,3,489,0,3,0,0,5,0]
["QJ2","RTG","UNIVERSITY HOSPITALS OF DERBY AND BURTON NHS FOUNDATION TRUST",190,15328,0.77894736842105261,0.14736842105263157,117,31,13,12,16,1,180,0,1,0,0,9,0]
["QJG","RDE","EAST SUFFOLK AND NORTH ESSEX NHS FOUNDATION TRUST",1460,7580,0.81232876712328772,0.10890410958904109,893,293,96,69,90,19,1224,0,0,0,236,0,0]
["QJG","RGR","WEST SUFFOLK NHS FOUNDATION TRUST",756,5140,0.84523809523809523,8.9947089947089942E-2,468,171,47,30,38,2,753,0,0,3,0,0,0]
["QJK","RBZ","NORTHERN DEVON HEALTHCARE NHS TRUST",10,2978,0.9,0.1,8,1,0,0,1,0,0,0,7,0,0,3,0]
["QJK","RH8","ROYAL DEVON AND EXETER NHS FOUNDATION TRUST",0,11201,"NA","NA",0,0,0,0,0,0,0,0,0,0,0,0,0]
["QJK","RA9","TORBAY AND SOUTH DEVON NHS FOUNDATION TRUST",18,3951,1,0,17,1,0,0,0,0,0,0,18,0,0,0,0]
["QJK","RK9","UNIVERSITY HOSPITALS PLYMOUTH NHS TRUST",779,12331,0.75353016688061614,0.16944801026957637,425,162,59,66,66,1,0,0,87,0,0,692,0]
["QJM","RWD","UNITED LINCOLNSHIRE HOSPITALS NHS TRUST",1270,4836,0.79055118110236222,0.12440944881889764,731,273,101,61,97,7,907,0,0,0,261,102,0]
["QK1","RWE","UNIVERSITY HOSPITALS OF LEICESTER NHS TRUST",1807,16607,0.72440509131156616,0.20918649695628114,950,359,111,134,244,9,1450,86,258,0,0,11,2]
["QKK","RJ1","GUY'S AND ST THOMAS' NHS FOUNDATION TRUST",1168,10183,0.85188356164383561,8.9897260273972601E-2,746,249,67,46,59,1,1129,0,33,0,0,6,0]
["QKK","RJZ","KING'S COLLEGE HOSPITAL NHS FOUNDATION TRUST",772,9721,0.74611398963730569,0.17098445595854922,351,225,61,53,79,3,552,175,0,5,0,40,0]
["QKK","RJ2","LEWISHAM AND GREENWICH NHS TRUST",1420,22087,0.70281690140845066,0.19295774647887323,614,384,137,99,175,11,1415,0,0,0,0,5,0]
["QKS","RN7","DARTFORD AND GRAVESHAM NHS TRUST",21,5022,0.95238095238095233,4.7619047619047616E-2,19,1,0,0,1,0,0,20,0,0,0,1,0]
["QKS","RVV","EAST KENT HOSPITALS UNIVERSITY NHS FOUNDATION TRUST",1743,13854,0.82214572576018363,0.11302352266207688,1089,344,113,95,102,0,1743,0,0,0,0,0,0]
["QKS","RWF","MAIDSTONE AND TUNBRIDGE WELLS NHS TRUST",78,15030,1,0,67,11,0,0,0,0,0,0,72,0,0,6,0]
["QKS","RPA","MEDWAY NHS FOUNDATION TRUST",944,7208,0.70338983050847459,0.20021186440677965,495,169,77,72,117,14,783,0,0,0,161,0,0]
["QM7","RWH","EAST AND NORTH HERTFORDSHIRE NHS TRUST",116,17921,0.80172413793103448,0.1206896551724138,59,34,5,7,7,4,0,0,72,0,40,4,0]
["QM7","RQW","THE PRINCESS ALEXANDRA HOSPITAL NHS TRUST",447,5248,0.69798657718120805,0.2058165548098434,210,102,38,30,62,5,0,0,0,0,0,0,447]
["QM7","RWG","WEST HERTFORDSHIRE HOSPITALS NHS TRUST",39,7535,0.92307692307692313,0,26,10,3,0,0,0,0,39,0,0,0,0,0]
["QMF","RF4","BARKING, HAVERING AND REDBRIDGE UNIVERSITY HOSPITALS NHS TRUST",368,9033,0.41847826086956524,0.4891304347826087,104,50,34,37,143,0,348,0,4,0,0,16,0]
["QMF","R1H","BARTS HEALTH NHS TRUST",2528,36053,0.63844936708860756,0.24050632911392406,1163,451,166,187,421,140,2438,0,74,0,0,16,0]
["QMF","RQX","HOMERTON UNIVERSITY HOSPITAL NHS FOUNDATION TRUST",27,8653,0.77777777777777779,0.14814814814814814,19,2,1,0,4,1,0,0,17,0,0,10,0]
["QMJ","RP6","MOORFIELDS EYE HOSPITAL NHS FOUNDATION TRUST",2072,5186,0.93388030888030893,2.557915057915058E-2,1701,234,42,23,30,42,2072,0,0,0,0,0,0]
["QMJ","RAP","NORTH MIDDLESEX UNIVERSITY HOSPITAL NHS TRUST",1125,13275,0.65688888888888886,0.26133333333333331,482,257,81,78,216,11,1125,0,0,0,0,0,0]
["QMJ","RAL","ROYAL FREE LONDON NHS FOUNDATION TRUST",2184,13001,0.76602564102564108,0.16391941391941392,1303,370,108,112,246,45,2119,50,0,0,0,15,0]
["QMJ","RRV","UNIVERSITY COLLEGE LONDON HOSPITALS NHS FOUNDATION TRUST",1589,8031,0.82630585273757085,0.10824417872876023,1091,222,85,68,104,19,1536,0,0,53,0,0,0]
["QMJ","RKE","WHITTINGTON HEALTH NHS TRUST",776,7375,0.74742268041237114,0.18943298969072164,424,156,45,68,79,4,776,0,0,0,0,0,0]
["QMM","RGP","JAMES PAGET UNIVERSITY HOSPITALS NHS FOUNDATION TRUST",55,4461,0.74545454545454548,0.21818181818181817,36,5,1,4,8,1,0,0,55,0,0,0,0]
["QMM","RM1","NORFOLK AND NORWICH UNIVERSITY HOSPITALS NHS FOUNDATION TRUST",831,7977,0.77978339350180503,0.14560770156438027,453,195,62,45,76,0,0,0,0,4,0,827,0]
["QMM","RCX","THE QUEEN ELIZABETH HOSPITAL, KING'S LYNN, NHS FOUNDATION TRUST",346,4057,0.83815028901734101,0.12427745664739884,226,64,12,15,28,1,0,0,63,0,0,283,0]
["QNC","RJE","UNIVERSITY HOSPITALS OF NORTH MIDLANDS NHS TRUST",1989,12770,0.75364504776269481,0.16339869281045752,1085,414,157,140,185,8,1989,0,0,0,0,0,0]
["QNQ","RDU","FRIMLEY HEALTH NHS FOUNDATION TRUST",837,15954,0.72520908004778972,0.1863799283154122,406,201,70,48,108,4,806,0,31,0,0,0,0]
["QNX","RXC","EAST SUSSEX HEALTHCARE NHS TRUST",107,10292,0.98130841121495327,0,97,8,2,0,0,0,0,1,106,0,0,0,0]
["QNX","RPC","QUEEN VICTORIA HOSPITAL NHS FOUNDATION TRUST",206,993,0.91747572815533984,4.8543689320388349E-2,175,14,5,2,8,2,142,0,0,0,64,0,0]
["QNX","RYR","UNIVERSITY HOSPITALS SUSSEX NHS FOUNDATION TRUST",3638,23002,0.78944474986256186,0.12561847168774051,2199,673,244,187,270,65,3290,14,65,0,269,0,0]
["QOC","RXW","THE SHREWSBURY AND TELFORD HOSPITAL NHS TRUST",293,11936,0.83959044368600677,6.4846416382252553E-2,145,101,28,11,8,0,0,0,1,0,292,0,0]
["QOP","RMC","BOLTON NHS FOUNDATION TRUST",1186,8350,0.82293423271500843,0.11045531197301856,799,177,61,52,79,18,1125,3,58,0,0,0,0]
["QOP","R0A","MANCHESTER UNIVERSITY NHS FOUNDATION TRUST",2183,29353,0.79019697663765465,0.14200641319285387,1378,347,108,119,191,40,1572,199,208,0,204,0,0]
["QOP","RM3","NORTHERN CARE ALLIANCE NHS FOUNDATION TRUST",716,8374,0.74581005586592175,0.18994413407821228,410,124,42,46,90,4,713,0,0,0,3,0,0]
["QOP","RW6","PENNINE ACUTE HOSPITALS NHS TRUST",1472,18723,0.72622282608695654,0.19904891304347827,804,265,95,94,199,15,1463,0,0,0,9,0,0]
["QOP","RWJ","STOCKPORT NHS FOUNDATION TRUST",1155,6789,0.83203463203463202,9.7835497835497831E-2,732,229,64,39,74,17,821,0,8,0,155,0,171]
["QOP","RMP","TAMESIDE AND GLOSSOP INTEGRATED CARE NHS FOUNDATION TRUST",789,8356,0.61850443599493032,0.30798479087452474,369,119,57,78,165,1,0,0,0,1,0,788,0]
["QOP","RRF","WRIGHTINGTON, WIGAN AND LEIGH NHS FOUNDATION TRUST",796,6903,0.68844221105527637,0.21608040201005024,405,143,61,60,112,15,615,0,2,0,179,0,0]
["QOQ","RCD","HARROGATE AND DISTRICT NHS FOUNDATION TRUST",447,3136,0.8523489932885906,5.5928411633109618E-2,281,100,38,12,13,3,0,0,1,0,446,0,0]
["QOQ","RWA","HULL UNIVERSITY TEACHING HOSPITALS NHS TRUST",1422,8082,0.70815752461322079,0.19057665260196907,731,276,109,118,153,35,1210,0,0,0,212,0,0]
["QOQ","RJL","NORTHERN LINCOLNSHIRE AND GOOLE NHS FOUNDATION TRUST",190,6381,0.67894736842105263,0.25263157894736843,92,37,13,21,27,0,0,1,0,0,0,0,189]
["QOQ","RCB","YORK AND SCARBOROUGH TEACHING HOSPITALS NHS FOUNDATION TRUST",345,6311,0.72753623188405792,0.16231884057971013,189,62,37,18,38,1,345,0,0,0,0,0,0]
["QOX","RN3","GREAT WESTERN HOSPITALS NHS FOUNDATION TRUST",1126,7334,0.78330373001776199,0.15008880994671403,688,194,65,74,95,10,1098,0,12,0,0,16,0]
["QOX","RD1","ROYAL UNITED HOSPITALS BATH NHS FOUNDATION TRUST",17,5676,0.6470588235294118,0.23529411764705882,"*","*","*","*","*","*","*","*","*","*","*","*","*"]
["QOX","RNZ","SALISBURY NHS FOUNDATION TRUST",1,2838,"*","*","*","*","*","*","*","*","*","*","*","*","*","*","*"]
["QPM","RNQ","KETTERING GENERAL HOSPITAL NHS FOUNDATION TRUST",257,6227,0.72762645914396884,0.17509727626459143,125,62,23,17,28,2,0,0,0,0,0,257,0]
["QPM","RNS","NORTHAMPTON GENERAL HOSPITAL NHS TRUST",1453,8751,0.76806607019958706,0.15554026152787337,837,279,96,84,142,15,1209,0,0,11,229,4,0]
["QR1","RTE","GLOUCESTERSHIRE HOSPITALS NHS FOUNDATION TRUST",1343,6439,0.67982129560685034,0.20997766195085629,602,311,141,83,199,7,1250,0,0,0,88,5,0]
["QRL","RN5","HAMPSHIRE HOSPITALS NHS FOUNDATION TRUST",1240,7931,0.85967741935483866,8.387096774193549E-2,869,197,67,49,55,3,846,0,1,0,387,6,0]
["QRL","R1F","ISLE OF WIGHT NHS TRUST",21,3144,0.90476190476190477,9.5238095238095233E-2,18,1,0,0,2,0,0,0,21,0,0,0,0]
["QRL","RHU","PORTSMOUTH HOSPITALS UNIVERSITY NATIONAL HEALTH SERVICE TRUST",1758,10785,0.82764505119453924,0.11149032992036405,1198,257,91,82,114,16,1758,0,0,0,0,0,0]
["QRL","RHM","UNIVERSITY HOSPITAL SOUTHAMPTON NHS FOUNDATION TRUST",0,8189,"NA","NA",0,0,0,0,0,0,0,0,0,0,0,0,0]
["QRV","RQM","CHELSEA AND WESTMINSTER HOSPITAL NHS FOUNDATION TRUST",3053,14167,0.78709466098919101,0.1473960039305601,1829,574,176,177,273,24,2940,0,0,0,60,53,0]
["QRV","RYJ","IMPERIAL COLLEGE HEALTHCARE NHS TRUST",1346,16889,0.81946508172362553,0.12704309063893016,870,233,71,54,117,1,0,325,0,0,0,1021,0]
["QRV","R1K","LONDON NORTH WEST UNIVERSITY HEALTHCARE NHS TRUST",95,6193,0.98947368421052628,0,92,2,1,0,0,0,0,0,0,95,0,0,0]
["QRV","RAS","THE HILLINGDON HOSPITALS NHS FOUNDATION TRUST",689,4205,0.760522496371553,0.16545718432510886,389,135,48,46,68,3,0,0,0,0,0,689,0]
["QSL","RH5","SOMERSET NHS FOUNDATION TRUST",13,12365,0.76923076923076927,0.15384615384615385,9,1,1,1,1,0,0,0,12,0,0,1,0]
["QSL","RA4","YEOVIL DISTRICT HOSPITAL NHS FOUNDATION TRUST",41,3390,0.97560975609756095,2.4390243902439025E-2,36,4,0,0,1,0,0,14,0,27,0,0,0]
["QT1","RX1","NOTTINGHAM UNIVERSITY HOSPITALS NHS TRUST",142,9657,0.823943661971831,0.14788732394366197,94,23,4,3,18,0,0,75,0,51,0,16,0]
["QT1","RK5","SHERWOOD FOREST HOSPITALS NHS FOUNDATION TRUST",1154,7739,0.89601386481802425,5.8058925476603122E-2,844,190,52,25,42,1,559,0,595,0,0,0,0]
["QT6","REF","ROYAL CORNWALL HOSPITALS NHS TRUST",846,4623,0.86052009456264777,8.7470449172576833E-2,562,166,42,41,33,2,687,156,0,0,0,3,0]
["QU9","RXQ","BUCKINGHAMSHIRE HEALTHCARE NHS TRUST",1094,4954,0.71937842778793415,0.17458866544789761,578,209,99,81,110,17,1024,0,0,0,70,0,0]
["QU9","RTH","OXFORD UNIVERSITY HOSPITALS NHS FOUNDATION TRUST",1913,7696,0.73967590172503916,0.16048092002090958,998,417,167,124,183,24,1875,0,0,0,0,38,0]
["QU9","RHW","ROYAL BERKSHIRE NHS FOUNDATION TRUST",31,10516,0.967741935483871,0,26,4,1,0,0,0,0,0,0,31,0,0,0]
["QUA","RXK","SANDWELL AND WEST BIRMINGHAM HOSPITALS NHS TRUST",408,3965,0.67892156862745101,0.23529411764705882,180,97,27,20,76,8,383,0,0,0,25,0,0]
["QUA","RNA","THE DUDLEY GROUP NHS FOUNDATION TRUST",1005,3901,0.69154228855721389,0.17412935323383086,527,168,60,63,112,75,937,0,68,0,0,0,0]
["QUA","RL4","THE ROYAL WOLVERHAMPTON NHS TRUST",1987,12422,0.68243583291394061,0.22697533970810266,961,395,150,150,301,30,1470,0,0,0,514,3,0]
["QUA","RBK","WALSALL HEALTHCARE NHS TRUST",443,2978,0.76749435665914223,0.14672686230248308,219,121,33,23,42,5,170,0,0,0,273,0,0]
["QUE","RGT","CAMBRIDGE UNIVERSITY HOSPITALS NHS FOUNDATION TRUST",1120,5999,0.85803571428571423,9.1964285714285721E-2,755,206,42,38,65,14,905,0,8,178,0,29,0]
["QUE","RGN","NORTH WEST ANGLIA NHS FOUNDATION TRUST",1554,11804,0.72715572715572718,0.18725868725868725,832,298,107,119,172,26,1524,0,0,30,0,0,0]
["QUY","RVJ","NORTH BRISTOL NHS TRUST",955,4919,0.74240837696335082,0.18429319371727748,555,154,54,54,122,16,815,0,0,0,140,0,0]
["QUY","RA7","UNIVERSITY HOSPITALS BRISTOL AND WESTON NHS FOUNDATION TRUST",1243,11990,0.81657280772325025,0.11504424778761062,816,199,73,61,82,12,1136,0,0,98,9,0,0]
["QVV","RBD","DORSET COUNTY HOSPITAL NHS FOUNDATION TRUST",864,2439,0.86805555555555558,7.8703703703703706E-2,605,145,38,32,36,8,857,0,0,0,7,0,0]
["QVV","R0D","UNIVERSITY HOSPITALS DORSET NHS FOUNDATION TRUST",1132,8962,0.80742049469964661,0.12720848056537101,688,226,61,48,96,13,1113,0,0,0,0,19,0]
["QWE","RJ6","CROYDON HEALTH SERVICES NHS TRUST",1197,12619,0.81119465329991647,0.11612364243943191,757,214,82,53,86,5,1197,0,0,0,0,0,0]
["QWE","RVR","EPSOM AND ST HELIER UNIVERSITY HOSPITALS NHS TRUST",1414,10501,0.80834512022630833,0.11386138613861387,881,262,93,75,86,17,1311,9,0,3,88,3,0]
["QWE","RAX","KINGSTON HOSPITAL NHS FOUNDATION TRUST",1195,6340,0.76317991631799165,0.15983263598326361,676,236,86,79,112,6,1117,2,0,0,65,11,0]
["QWE","RJ7","ST GEORGE'S UNIVERSITY HOSPITALS NHS FOUNDATION TRUST",1195,9726,0.75481171548117154,0.17489539748953975,624,278,80,84,125,4,0,0,0,0,0,1195,0]
["QWO","RCF","AIREDALE NHS FOUNDATION TRUST",560,2739,0.83750000000000002,0.1125,369,100,24,23,40,4,560,0,0,0,0,0,0]
["QWO","RAE","BRADFORD TEACHING HOSPITALS NHS FOUNDATION TRUST",1303,6388,0.59938603223330778,0.30698388334612431,570,211,89,116,284,33,1303,0,0,0,0,0,0]
["QWO","RWY","CALDERDALE AND HUDDERSFIELD NHS FOUNDATION TRUST",852,11180,0.82746478873239437,0.10915492957746478,573,132,48,34,59,6,727,0,0,0,0,125,0]
["QWO","RR8","LEEDS TEACHING HOSPITALS NHS TRUST",2135,13486,0.72599531615925061,0.18969555035128804,1101,449,158,138,267,22,1645,142,0,25,323,0,0]
["QWO","RXF","MID YORKSHIRE HOSPITALS NHS TRUST",1066,11339,0.66885553470919323,0.24296435272045028,516,197,92,100,159,2,927,0,96,0,0,43,0]
["QWU","RLT","GEORGE ELIOT HOSPITAL NHS TRUST",1828,4596,0.80579868708971558,0.13019693654266959,1075,398,97,95,143,20,1810,0,0,0,18,0,0]
["QWU","RJC","SOUTH WARWICKSHIRE NHS FOUNDATION TRUST",2,3444,"*","*","*","*","*","*","*","*","*","*","*","*","*","*","*"]
["QWU","RKB","UNIVERSITY HOSPITALS COVENTRY AND WARWICKSHIRE NHS TRUST",1608,15798,0.71828358208955223,0.19838308457711443,"*","*","*","*","*","*","*","*","*","*","*","*","*"]
["QXU","RTK","ASHFORD AND ST PETER'S HOSPITALS NHS FOUNDATION TRUST",316,4121,0.78481012658227844,0.14556962025316456,172,76,22,21,25,0,316,0,0,0,0,0,0]
["QXU","RA2","ROYAL SURREY COUNTY HOSPITAL NHS FOUNDATION TRUST",670,3770,0.85970149253731343,8.9552238805970144E-2,440,136,34,27,33,0,625,0,0,0,45,0,0]
["QXU","RTP","SURREY AND SUSSEX HEALTHCARE NHS TRUST",676,5664,0.83136094674556216,0.10355029585798817,438,124,42,33,37,2,611,0,55,0,0,10,0]
["QYG","RBS","ALDER HEY CHILDREN'S NHS FOUNDATION TRUST",327,6183,0.64220183486238536,0.25993883792048927,139,71,32,32,53,0,323,4,0,0,0,0,0]
["QYG","RJN","EAST CHESHIRE NHS TRUST",634,2771,0.80126182965299686,0.12933753943217666,412,96,38,32,50,6,574,0,0,0,60,0,0]
["QYG","REM","LIVERPOOL UNIVERSITY HOSPITALS NHS FOUNDATION TRUST",1726,9401,0.60602549246813442,0.29432213209733488,781,265,124,147,361,48,1631,0,0,0,95,0,0]
["QYG","REP","LIVERPOOL WOMEN'S NHS FOUNDATION TRUST",29,886,0.86206896551724133,0.10344827586206896,21,4,1,3,0,0,0,0,0,0,0,0,29]
["QYG","RBT","MID CHESHIRE HOSPITALS NHS FOUNDATION TRUST",845,7110,0.86863905325443791,7.3372781065088752E-2,601,133,41,26,36,8,751,0,1,0,63,0,30]
["QYG","RVY","SOUTHPORT AND ORMSKIRK HOSPITAL NHS TRUST",999,4522,0.85285285285285284,0.11711711711711711,672,180,29,63,54,1,905,0,0,0,89,5,0]
["QYG","RBN","ST HELENS AND KNOWSLEY TEACHING HOSPITALS NHS TRUST",656,4819,0.79420731707317072,0.10518292682926829,415,106,53,31,38,13,594,0,0,0,62,0,0]
["QYG","RWW","WARRINGTON AND HALTON TEACHING HOSPITALS NHS FOUNDATION TRUST",1730,8704,0.73005780346820814,0.19075144508670519,958,305,106,116,214,31,1350,0,81,0,295,4,0]
["QYG","RBL","WIRRAL UNIVERSITY TEACHING HOSPITAL NHS FOUNDATION TRUST",576,4325,0.72395833333333337,0.1892361111111111,291,126,43,39,70,7,503,0,0,0,73,0,0]

{"sheet":"Sites","index":4,"n_rows":241,"n_cols":15,"rows_kept":241,"cut":false,"hidden":false,"merged":[[2,6,3,6],[2,7,3,7],[2,8,3,8],[2,9,2,14],[2,0,3,0],[2,1,3,1],[2,2,3,2],[2,3,3,3],[2,4,3,4],[2,5,3,5]]}
[]
[]
["STP Code","Trust Code","Trust Name","Site Code","Site Name","Total Responses","Total Eligible","Percentage Positive","Percentage Negative","Breakdown of Responses"]
[null,null,null,null,null,null,null,null,null,"Very Good","Good","Neither Good nor Poor","Poor","Very Poor","Don't Know"]
[null,null,null,null,"England",111094,1117795,0.76578393072533169,0.15660611734207067,63923,21151,7285,6482,10916,1337]
[null,null,null,null,"Selection (excluding suppressed data)",{"$f":"SUBTOTAL(9,F7:F987)","v":111094},{"$f":"SUBTOTAL(9,G7:G987)","v":1117795},{"$f":"IFERROR((J6+K6)/F6, \"-\")","v":0.74949142167893856},{"$f":"IFERROR((M6+N6)/F6, \"-\")","v":0.15206941869047833},{"$f":"SUBTOTAL(9,J7:J987)","v":62597},20667,7106,6312,10582,1304]
["QE1","RXL","BLACKPOOL TEACHING HOSPITALS NHS FOUNDATION TRUST","RXL01","Blackpool Victoria Hospital - RXL01",294,3708,0.74489795918367352,0.18367346938775511,161,58,21,18,36,0]
["QE1","RXR","EAST LANCASHIRE HOSPITALS NHS TRUST","RXR20","Royal Blackburn Hospital - RXR20",1199,10256,0.66472060050041704,0.22435362802335279,554,243,115,103,166,18]
["QE1","RXN","LANCASHIRE TEACHING HOSPITALS NHS FOUNDATION TRUST","RXN01","Chorley and South Ribble Hospital - RXN01",179,1309,0.84916201117318435,7.8212290502793297E-2,120,32,12,8,6,1]
["QE1","RXN","LANCASHIRE TEACHING HOSPITALS NHS FOUNDATION TRUST","RXN02","Royal Preston Hospital - RXN02",291,2603,0.5670103092783505,0.30927835051546393,95,70,35,37,53,1]
["QE1","RTX","UNIVERSITY HOSPITALS OF MORECAMBE BAY NHS FOUNDATION TRUST","RTXBU","Furness General Hospital - RTXBU",331,1878,0.90030211480362543,5.4380664652567974E-2,242,56,11,7,11,4]
["QE1","RTX","UNIVERSITY HOSPITALS OF MORECAMBE BAY NHS FOUNDATION TRUST","RTX02","Royal Lancaster Infirmary - RTX02",553,3206,0.81735985533453892,0.11030741410488246,325,127,35,28,33,5]
["QE1","RTX","UNIVERSITY HOSPITALS OF MORECAMBE BAY NHS FOUNDATION TRUST","RTXBW","Westmorland General Hospital - RTXBW",385,1522,0.96363636363636362,1.8181818181818181E-2,324,47,6,3,4,1]
["QF7","RFF","BARNSLEY HOSPITAL NHS FOUNDATION TRUST","RFFAA","Barnsley Hospital NHS Foundation Trust HQ - RFFAA",442,8400,0.81221719457013575,0.10859728506787331,245,114,35,20,28,0]
["QF7","RP5","DONCASTER AND BASSETLAW TEACHING HOSPITALS NHS FOUNDATION TRUST","RP5BA","Bassetlaw Hospital - RP5BA",0,3945,"NA","NA",0,0,0,0,0,0]
["QF7","RP5","DONCASTER AND BASSETLAW TEACHING HOSPITALS NHS FOUNDATION TRUST","RP5DR","Doncaster Royal Infirmary - RP5DR",0,8054,"NA","NA",0,0,0,0,0,0]
["QF7","RP5","DONCASTER AND BASSETLAW TEACHING HOSPITALS NHS FOUNDATION TRUST","RP5MM","Montagu Hospital - RP5MM",0,1749,"NA","NA",0,0,0,0,0,0]
["QF7","RCU","SHEFFIELD CHILDREN'S NHS FOUNDATION TRUST","RCUEF","Sheffield Children's Hospital - RCUEF",608,5558,0.81578947368421051,9.5394736842105268E-2,364,132,50,29,29,4]
["QF7","RHQ","SHEFFIELD TEACHING HOSPITALS NHS FOUNDATION TRUST","RHQNG","Northern General Hospital - RHQNG",993,7315,0.67774420946626379,0.21047331319234641,501,172,92,78,131,19]
["QF7","RHQ","SHEFFIELD TEACHING HOSPITALS NHS FOUNDATION TRUST","RHQHH","Royal Hallamshire Hospital - RHQHH",165,722,0.92727272727272725,1.2121212121212121E-2,136,17,10,1,1,0]
["QF7","RHQ","SHEFFIELD TEACHING HOSPITALS NHS FOUNDATION TRUST","RHQXXX","WiC_MIU - RHQXXX",303,1452,0.91419141914191415,3.9603960396039604E-2,214,63,14,9,3,0]
["QF7","RFR","THE ROTHERHAM NHS FOUNDATION TRUST","RFRPA","Rotherham District General Hospital - RFRPA",85,7766,0.6588235294117647,0.21176470588235294,26,30,11,10,8,0]
["QGH","RWP","WORCESTERSHIRE ACUTE HOSPITALS NHS TRUST","RWP01","Alexandra Hospital - RWP01",694,3586,0.80979827089337175,0.13544668587896252,406,156,36,46,48,2]
["QGH","RWP","WORCESTERSHIRE ACUTE HOSPITALS NHS TRUST","RWP31","Kidderminster Hospital - RWP31",182,1657,0.93406593406593408,3.8461538461538464E-2,131,39,5,2,5,0]
["QGH","RWP","WORCESTERSHIRE ACUTE HOSPITALS NHS TRUST","RWP50","Worcestershire Royal Hospital - RWP50",867,4696,0.75778546712802763,0.1453287197231834,421,236,74,42,84,10]
["QGH","RLQ","WYE VALLEY NHS TRUST","RLQ01","Hereford County Hospital - RLQ01",0,0,"NA","NA",0,0,0,0,0,0]
["QH8","RAJ","MID AND SOUTH ESSEX NHS FOUNDATION TRUST","RAJ12","Basildon Hospital - RAJ12",1229,9353,0.71358828315703826,0.16598860862489828,613,264,129,76,128,19]
["QH8","RAJ","MID AND SOUTH ESSEX NHS FOUNDATION TRUST","RAJ32","Mid Essex Hospital - RAJ32",1125,6292,0.79466666666666663,0.13155555555555556,662,232,77,66,82,6]
["QH8","RAJ","MID AND SOUTH ESSEX NHS FOUNDATION TRUST","RAJ01","Southend Hospital - RAJ01",773,5260,0.78654592496765852,0.12289780077619664,456,152,60,37,58,10]
["QHG","RC9","BEDFORDSHIRE HOSPITALS NHS FOUNDATION TRUST","RC979","Bedford Hospital South Wing - RC979",26,3696,0.53846153846153844,0.30769230769230771,9,5,3,1,7,1]
["QHG","RC9","BEDFORDSHIRE HOSPITALS NHS FOUNDATION TRUST","RC971","Luton and Dunstable Hospital - RC971",48,9006,0.79166666666666663,0.125,32,6,3,1,5,1]
["QHG","RD8","MILTON KEYNES UNIVERSITY HOSPITAL NHS FOUNDATION TRUST","RD816","Milton Keynes Hospital - RD816",188,7883,0.87765957446808507,7.9787234042553196E-2,123,42,8,7,8,0]
["QHL","RRK","UNIVERSITY HOSPITALS BIRMINGHAM NHS FOUNDATION TRUST","RRK98","Good Hope Hospital - RRK98",1064,5106,0.76597744360902253,0.15883458646616541,613,202,69,66,103,11]
["QHL","RRK","UNIVERSITY HOSPITALS BIRMINGHAM NHS FOUNDATION TRUST","RRK97","Heartlands Hospital - RRK97",646,6642,0.63312693498452011,0.26625386996904027,278,131,48,53,119,17]
["QHL","RRK","UNIVERSITY HOSPITALS BIRMINGHAM NHS FOUNDATION TRUST","RRK15","Queen Elizabeth Hospital Birmingham - RRK15",1573,5997,0.65289256198347112,0.24793388429752067,734,293,123,136,254,33]
["QHM","RR7","GATESHEAD HEALTH NHS FOUNDATION TRUST","RR7EN","Queen Elizabeth Hospital - RR7EN",143,5840,0.76223776223776218,0.16783216783216784,83,26,10,11,13,0]
["QHM","RR7","GATESHEAD HEALTH NHS FOUNDATION TRUST","RR7XXX","WiC_MIU - RR7XXX",13,530,0.92307692307692313,0,10,2,0,0,0,1]
["QHM","RNN","NORTH CUMBRIA INTEGRATED CARE NHS FOUNDATION TRUST","RNN62","Cumberland Infirmary - RNN62",56,3101,0.7678571428571429,0.17857142857142858,33,10,3,4,6,0]
["QHM","RNN","NORTH CUMBRIA INTEGRATED CARE NHS FOUNDATION TRUST","RNNBX","West Cumberland Hospital - RNNBX",43,2169,0.86046511627906974,6.9767441860465115E-2,25,12,2,1,2,1]
["QHM","RVW","NORTH TEES AND HARTLEPOOL NHS FOUNDATION TRUST","RVWAE","University Hospital Of North Tees - RVWAE",78,3556,0.78205128205128205,0.12820512820512819,40,21,7,4,6,0]
["QHM","RTF","NORTHUMBRIA HEALTHCARE NHS FOUNDATION TRUST","RTF86","The Northumbria - RTF86",320,4122,0.80937499999999996,0.11562500000000001,188,71,21,13,24,3]
["QHM","RTF","NORTHUMBRIA HEALTHCARE NHS FOUNDATION TRUST","RTFXXX","WiC_MIU - RTFXXX",462,8729,0.8614718614718615,9.0909090909090912E-2,311,87,21,13,29,1]
["QHM","RTR","SOUTH TEES HOSPITALS NHS FOUNDATION TRUST","RTR45","Friarage Hospital Site - RTR45",90,1712,0.8666666666666667,8.8888888888888892E-2,67,11,4,5,3,0]
["QHM","RTR","SOUTH TEES HOSPITALS NHS FOUNDATION TRUST","RTRAT","The James Cook University Hospital - RTRAT",261,7366,0.75095785440613028,0.1532567049808429,137,59,25,16,24,0]
["QHM","RTR","SOUTH TEES HOSPITALS NHS FOUNDATION TRUST","RTRXXX","WiC_MIU - RTRXXX",111,2485,0.86486486486486491,6.3063063063063057E-2,77,19,7,4,3,1]
["QHM","R0B","SOUTH TYNESIDE AND SUNDERLAND NHS FOUNDATION TRUST","R0B0Q","South Tyneside District Hospital - R0B0Q",0,3895,"NA","NA",0,0,0,0,0,0]
["QHM","R0B","SOUTH TYNESIDE AND SUNDERLAND NHS FOUNDATION TRUST","R0B0X","Sunderland Eye Infirmary – R0B0X",0,1378,"NA","NA",0,0,0,0,0,0]
["QHM","R0B","SOUTH TYNESIDE AND SUNDERLAND NHS FOUNDATION TRUST","R0B01","Sunderland Royal Hospital – R0B01",0,5601,"NA","NA",0,0,0,0,0,0]
["QHM","RTD","THE NEWCASTLE UPON TYNE HOSPITALS NHS FOUNDATION TRUST","RTD02","The Royal Victoria Infirmary - RTD02",184,17020,0.84239130434782605,0.11956521739130435,122,33,7,11,11,0]
["QJ2","RFS","CHESTERFIELD ROYAL HOSPITAL NHS FOUNDATION TRUST","RFSDA","Chesterfield Royal Hospital - RFSDA",497,5587,0.81690140845070425,0.12072434607645875,309,97,28,27,33,3]
["QJ2","RTG","UNIVERSITY HOSPITALS OF DERBY AND BURTON NHS FOUNDATION TRUST","RTG02","Queen's Hospital, Burton Upon Trent - RTG02",42,4239,0.73809523809523814,0.14285714285714285,25,6,5,3,3,0]
["QJ2","RTG","UNIVERSITY HOSPITALS OF DERBY AND BURTON NHS FOUNDATION TRUST","RTGFG","Royal Derby Hospital - RTGFG",111,6977,0.72972972972972971,0.1981981981981982,59,22,8,9,13,0]
["QJ2","RTG","UNIVERSITY HOSPITALS OF DERBY AND BURTON NHS FOUNDATION TRUST","RTG54","Samuel Johnson - RTG54",21,1983,1,0,18,3,0,0,0,0]
["QJ2","RTG","UNIVERSITY HOSPITALS OF DERBY AND BURTON NHS FOUNDATION TRUST","RTG50","Sir Robert Peel - RTG50",16,2129,0.9375,0,15,0,0,0,0,1]
["QJG","RDE","EAST SUFFOLK AND NORTH ESSEX NHS FOUNDATION TRUST","RDEE4","Colchester General Hospital - RDEE4",602,3191,0.79900332225913617,0.11627906976744186,357,124,43,27,43,8]
["QJG","RDE","EAST SUFFOLK AND NORTH ESSEX NHS FOUNDATION TRUST","RDE03","Ipswich Hospital - RDE03",858,4389,0.82167832167832167,0.10372960372960373,536,169,53,42,47,11]
["QJG","RGR","WEST SUFFOLK NHS FOUNDATION TRUST","RGR50","West Suffolk Hospital - RGR50",756,5140,0.84523809523809523,8.9947089947089942E-2,468,171,47,30,38,2]
["QJK","RBZ","NORTHERN DEVON HEALTHCARE NHS TRUST","RBZ12","North Devon District Hospital - RBZ12",10,2978,0.9,0.1,8,1,0,0,1,0]
["QJK","RH8","ROYAL DEVON AND EXETER NHS FOUNDATION TRUST","RH801","Royal Devon and Exeter Hospital (Wonford) - RH801",0,7884,"NA","NA",0,0,0,0,0,0]
["QJK","RH8","ROYAL DEVON AND EXETER NHS FOUNDATION TRUST","RH8XXX","WiC_MIU - RH8XXX",0,3317,"NA","NA",0,0,0,0,0,0]
["QJK","RA9","TORBAY AND SOUTH DEVON NHS FOUNDATION TRUST","RA901","Torbay Hospital - RA901",18,3951,1,0,17,1,0,0,0,0]
["QJK","RK9","UNIVERSITY HOSPITALS PLYMOUTH NHS TRUST","RK950","Derriford Hospital - RK950",640,9055,0.73124999999999996,0.18437500000000001,339,129,53,56,62,1]
["QJK","RK9","UNIVERSITY HOSPITALS PLYMOUTH NHS TRUST","RK9XXX","WiC_MIU - RK9XXX",139,3276,0.85611510791366907,0.10071942446043165,86,33,6,10,4,0]
["QJM","RWD","UNITED LINCOLNSHIRE HOSPITALS NHS TRUST","RWDLP","Grantham and District Hospital - RWDLP",316,1113,0.870253164556962,6.6455696202531639E-2,228,47,18,13,8,2]
["QJM","RWD","UNITED LINCOLNSHIRE HOSPITALS NHS TRUST","RWDDA","Lincoln County Hospital - RWDDA",611,2335,0.7528641571194763,0.16039279869067102,322,138,51,36,62,2]
["QJM","RWD","UNITED LINCOLNSHIRE HOSPITALS NHS TRUST","RWDLA","Pilgrim Hospital - RWDLA",343,1388,0.78425655976676389,0.11370262390670553,181,88,32,12,27,3]
["QK1","RWE","UNIVERSITY HOSPITALS OF LEICESTER NHS TRUST","RWEAA","Leicester Royal Infirmary - RWEAA",1807,16607,0.72440509131156616,0.20918649695628114,950,359,111,134,244,9]
["QKK","RJ1","GUY'S AND ST THOMAS' NHS FOUNDATION TRUST","RJ122","St Thomas' Hospital - RJ122",903,8292,0.85160575858250276,8.8593576965669996E-2,569,200,53,35,45,1]
["QKK","RJ1","GUY'S AND ST THOMAS' NHS FOUNDATION TRUST","RJ1XXX","WiC_MIU - RJ1XXX",265,1891,0.85283018867924532,9.4339622641509441E-2,177,49,14,11,14,0]
["QKK","RJZ","KING'S COLLEGE HOSPITAL NHS FOUNDATION TRUST","RJZ01","King's College Hospital (Denmark Hill) - RJZ01",420,6041,0.73333333333333328,0.18809523809523809,183,125,31,27,52,2]
["QKK","RJZ","KING'S COLLEGE HOSPITAL NHS FOUNDATION TRUST","RJZ30","Princess Royal University Hospital - RJZ30",352,3680,0.76136363636363635,0.15056818181818182,168,100,30,26,27,1]
["QKK","RJ2","LEWISHAM AND GREENWICH NHS TRUST","RJ231","Queen Elizabeth Hospital - RJ231",596,9534,0.70469798657718119,0.19630872483221476,245,175,52,44,73,7]
["QKK","RJ2","LEWISHAM AND GREENWICH NHS TRUST","RJ224","University Hospital Lewisham - RJ224",824,12553,0.70145631067961167,0.19053398058252427,369,209,85,55,102,4]
["QKS","RN7","DARTFORD AND GRAVESHAM NHS TRUST","RN707","Darent Valley Hospital - RN707",21,5022,0.95238095238095233,4.7619047619047616E-2,19,1,0,0,1,0]
["QKS","RVV","EAST KENT HOSPITALS UNIVERSITY NHS FOUNDATION TRUST","RVV02","Buckland Hospital - RVV02",208,1639,0.94711538461538458,2.8846153846153848E-2,170,27,5,4,2,0]
["QKS","RVV","EAST KENT HOSPITALS UNIVERSITY NHS FOUNDATION TRUST","RVVKC","Kent and Canterbury Hospital - RVVKC",262,2111,0.91221374045801529,4.5801526717557252E-2,204,35,11,5,7,0]
["QKS","RVV","EAST KENT HOSPITALS UNIVERSITY NHS FOUNDATION TRUST","RVV09","Queen Elizabeth The Queen Mother Hospital - RVV09",599,4767,0.80634390651085142,0.12186978297161936,360,123,43,39,34,0]
["QKS","RVV","EAST KENT HOSPITALS UNIVERSITY NHS FOUNDATION TRUST","RVV01","William Harvey Hospital (Ashford) - RVV01",674,5337,0.76261127596439171,0.15727002967359049,355,159,54,47,59,0]
["QKS","RWF","MAIDSTONE AND TUNBRIDGE WELLS NHS TRUST","RWF03","Maidstone District General Hospital - RWF03",74,7276,1,0,"*","*","*","*","*","*"]
["QKS","RWF","MAIDSTONE AND TUNBRIDGE WELLS NHS TRUST","RWFTW","The Tunbridge Wells Hospital - RWFTW",4,7754,"*","*","*","*","*","*","*","*"]
["QKS","RWF","MAIDSTONE AND TUNBRIDGE WELLS NHS TRUST","RWFXXX","WiC_MIU - RWFXXX",0,0,"NA","NA",0,0,0,0,0,0]
["QKS","RPA","MEDWAY NHS FOUNDATION TRUST","RPA02","Medway Maritime Hospital - RPA02",944,7208,0.70338983050847459,0.20021186440677965,495,169,77,72,117,14]
["QM7","RWH","EAST AND NORTH HERTFORDSHIRE NHS TRUST","RWH01","Lister Hospital - RWH01",73,11848,0.72602739726027399,0.16438356164383561,29,24,5,5,7,3]
["QM7","RWH","EAST AND NORTH HERTFORDSHIRE NHS TRUST","RWH20","Queen Elizabeth I I Hospital - RWH20",43,6073,0.93023255813953487,4.6511627906976744E-2,30,10,0,2,0,1]
["QM7","RQW","THE PRINCESS ALEXANDRA HOSPITAL NHS TRUST","RQWG0","Princess Alexandra Hospital - RQWG0",447,5248,0.69798657718120805,0.2058165548098434,210,102,38,30,62,5]
["QM7","RWG","WEST HERTFORDSHIRE HOSPITALS NHS TRUST","RWG08","Hemel Hempstead Hospital - RWG08",1,3523,"*","*","*","*","*","*","*","*"]
["QM7","RWG","WEST HERTFORDSHIRE HOSPITALS NHS TRUST","RWG02","Watford General Hospital - RWG02",38,4012,0.92105263157894735,0,"*","*","*","*","*","*"]
["QMF","RF4","BARKING, HAVERING AND REDBRIDGE UNIVERSITY HOSPITALS NHS TRUST","RF4DG","King George Hospital - RF4DG",129,3002,0.41860465116279072,0.48062015503875971,37,17,13,12,50,0]
["QMF","RF4","BARKING, HAVERING AND REDBRIDGE UNIVERSITY HOSPITALS NHS TRUST","RF4QH","Queen's Hospital - RF4QH",239,6031,0.41841004184100417,0.49372384937238495,67,33,21,25,93,0]
["QMF","R1H","BARTS HEALTH NHS TRUST","R1HNH","Newham General Hospital - R1HNH",276,5284,0.60869565217391308,0.26811594202898553,127,41,19,18,56,15]
["QMF","R1H","BARTS HEALTH NHS TRUST","R1HM0","St Bartholomew's Hospital - R1HM0",0,0,"NA","NA",0,0,0,0,0,0]
["QMF","R1H","BARTS HEALTH NHS TRUST","R1H12","The Royal London Hospital - R1H12",546,5779,0.73443223443223449,0.16666666666666666,296,105,28,28,63,26]
["QMF","R1H","BARTS HEALTH NHS TRUST","R1HKH","Whipps Cross University Hospital - R1HKH",671,5981,0.69597615499254839,0.17585692995529062,328,139,52,40,78,34]
["QMF","R1H","BARTS HEALTH NHS TRUST","R1HXXX","WiC_MIU - R1HXXX",1035,19009,0.55845410628019321,0.3140096618357488,412,166,67,101,224,65]
["QMF","RQX","HOMERTON UNIVERSITY HOSPITAL NHS FOUNDATION TRUST","RQXM1","Homerton University Hospital - RQXM1",27,8653,0.77777777777777779,0.14814814814814814,19,2,1,0,4,1]
["QMJ","RP6","MOORFIELDS EYE HOSPITAL NHS FOUNDATION TRUST","RP601","Moorfields Eye Hospital (City Road) - RP601",2072,5186,0.93388030888030893,2.557915057915058E-2,1701,234,42,23,30,42]
["QMJ","RAP","NORTH MIDDLESEX UNIVERSITY HOSPITAL NHS TRUST","RAPNM","North Middlesex Hospital - RAPNM",1125,13275,0.65688888888888886,0.26133333333333331,482,257,81,78,216,11]
["QMJ","RAL","ROYAL FREE LONDON NHS FOUNDATION TRUST","RAL26","Barnet Hospital - RAL26",964,4978,0.75311203319502074,0.17738589211618258,551,175,42,54,117,25]
["QMJ","RAL","ROYAL FREE LONDON NHS FOUNDATION TRUST","RAL01","Royal Free Hospital - RAL01",1170,5458,0.77435897435897438,0.15384615384615385,720,186,65,57,123,19]
["QMJ","RAL","ROYAL FREE LONDON NHS FOUNDATION TRUST","RALXXX","WiC_MIU - RALXXX",50,2565,0.82,0.14000000000000001,32,9,1,1,6,1]
["QMJ","RRV","UNIVERSITY COLLEGE LONDON HOSPITALS NHS FOUNDATION TRUST","RRV03","University College Hospital - RRV03",1589,8031,0.82630585273757085,0.10824417872876023,1091,222,85,68,104,19]
["QMJ","RKE","WHITTINGTON HEALTH NHS TRUST","RKEQ4","The Whittington Hospital - RKEQ4",776,7375,0.74742268041237114,0.18943298969072164,424,156,45,68,79,4]
["QMM","RGP","JAMES PAGET UNIVERSITY HOSPITALS NHS FOUNDATION TRUST","RGP75","James Paget University Hospital - RGP75",55,4461,0.74545454545454548,0.21818181818181817,36,5,1,4,8,1]
["QMM","RM1","NORFOLK AND NORWICH UNIVERSITY HOSPITALS NHS FOUNDATION TRUST","RM102","Norfolk and Norwich University Hospital - RM102",831,7977,0.77978339350180503,0.14560770156438027,453,195,62,45,76,0]
["QMM","RCX","THE QUEEN ELIZABETH HOSPITAL, KING'S LYNN, NHS FOUNDATION TRUST","RCX70","The Queen Elizabeth Hospital - RCX70",346,4057,0.83815028901734101,0.12427745664739884,226,64,12,15,28,1]
["QNC","RJE","UNIVERSITY HOSPITALS OF NORTH MIDLANDS NHS TRUST","RJE09","County Hospital - RJE09",365,2498,0.83287671232876714,7.9452054794520555E-2,237,67,30,13,16,2]
["QNC","RJE","UNIVERSITY HOSPITALS OF NORTH MIDLANDS NHS TRUST","RJE01","Royal Stoke University Hospital - RJE01",1130,5435,0.70353982300884954,0.2168141592920354,547,248,85,97,148,5]
["QNC","RJE","UNIVERSITY HOSPITALS OF NORTH MIDLANDS NHS TRUST","RJEXXX","WiC_MIU - RJEXXX",494,4837,0.80971659919028338,0.10323886639676114,301,99,42,30,21,1]
["QNQ","RDU","FRIMLEY HEALTH NHS FOUNDATION TRUST","RDU01","Frimley Park Hospital - RDU01",744,7764,0.72446236559139787,0.18682795698924731,358,181,62,44,95,4]
["QNQ","RDU","FRIMLEY HEALTH NHS FOUNDATION TRUST","RDU50","Wexham Park Hospital - RDU50",93,8190,0.73118279569892475,0.18279569892473119,48,20,8,4,13,0]
["QNX","RXC","EAST SUSSEX HEALTHCARE NHS TRUST","RXC01","Conquest Hospital - RXC01",23,4845,1,0,21,2,0,0,0,0]
["QNX","RXC","EAST SUSSEX HEALTHCARE NHS TRUST","RXC02","Eastbourne District General Hospital - RXC02",84,5447,0.97619047619047616,0,76,6,2,0,0,0]
["QNX","RPC","QUEEN VICTORIA HOSPITAL NHS FOUNDATION TRUST","RPC","QUEEN VICTORIA HOSPITAL NHS FOUNDATION TRUST",206,993,0.91747572815533984,4.8543689320388349E-2,175,14,5,2,8,2]
["QNX","RYR","UNIVERSITY HOSPITALS SUSSEX NHS FOUNDATION TRUST","N6J7V","Princess Royal Hospital - N6J7V",763,3300,0.81913499344692009,0.10747051114023591,494,131,46,39,43,10]
["QNX","RYR","UNIVERSITY HOSPITALS SUSSEX NHS FOUNDATION TRUST","E0A3H","Royal Sussex County Hospital - E0A3H",1033,5687,0.71926427879961274,0.18683446272991289,520,223,88,77,116,9]
["QNX","RYR","UNIVERSITY HOSPITALS SUSSEX NHS FOUNDATION TRUST","RYR16","St Richard's Hospital - RYR16",528,4171,0.80113636363636365,8.9015151515151519E-2,337,86,40,21,26,18]
["QNX","RYR","UNIVERSITY HOSPITALS SUSSEX NHS FOUNDATION TRUST","X5M8P","Sussex Eye Hospital - X5M8P",348,1406,0.91091954022988508,5.7471264367816091E-2,260,57,8,9,11,3]
["QNX","RYR","UNIVERSITY HOSPITALS SUSSEX NHS FOUNDATION TRUST","G0W1C","The Royal Alexandra Children's Hospital - G0W1C",328,2587,0.81707317073170727,0.1402439024390244,220,48,14,24,22,0]
["QNX","RYR","UNIVERSITY HOSPITALS SUSSEX NHS FOUNDATION TRUST","RYR18","Worthing Hospital - RYR18",638,5851,0.77742946708463945,0.10815047021943573,368,128,48,17,52,25]
["QOC","RXW","THE SHREWSBURY AND TELFORD HOSPITAL NHS TRUST","RXWAS","Royal Shrewsbury Hospital - RXWAS",132,5366,0.87121212121212122,6.8181818181818177E-2,75,40,8,6,3,0]
["QOC","RXW","THE SHREWSBURY AND TELFORD HOSPITAL NHS TRUST","RXWAT","The Princess Royal Hospital - RXWAT",161,6570,0.81366459627329191,6.2111801242236024E-2,70,61,20,5,5,0]
["QOP","RMC","BOLTON NHS FOUNDATION TRUST","RMC01","Royal Bolton Hospital - RMC01",1186,8350,0.82293423271500843,0.11045531197301856,799,177,61,52,79,18]
["QOP","R0A","MANCHESTER UNIVERSITY NHS FOUNDATION TRUST","R0A04","Manchester Royal Eye Hospital - R0A04",17,1884,1,0,17,0,0,0,0,0]
["QOP","R0A","MANCHESTER UNIVERSITY NHS FOUNDATION TRUST","R0A02","Manchester Royal Infirmary - R0A02",141,7052,0.88652482269503541,7.0921985815602842E-2,111,14,5,3,7,1]
["QOP","R0A","MANCHESTER UNIVERSITY NHS FOUNDATION TRUST","R0A66","North Manchester General Hospital -R0A66",822,6459,0.76399026763990263,0.16301703163017031,503,125,44,56,78,16]
["QOP","R0A","MANCHESTER UNIVERSITY NHS FOUNDATION TRUST","R0A03","Royal Manchester Children's Hospital - R0A03",575,4250,0.75826086956521743,0.17043478260869566,327,109,32,42,56,9]
["QOP","R0A","MANCHESTER UNIVERSITY NHS FOUNDATION TRUST","R0A05","St Mary's Hospital - R0A05",0,0,"NA","NA",0,0,0,0,0,0]
["QOP","R0A","MANCHESTER UNIVERSITY NHS FOUNDATION TRUST","R0A09","Trafford General Hospital - R0A09",96,2738,0.97916666666666663,1.0416666666666666E-2,79,15,1,0,1,0]
["QOP","R0A","MANCHESTER UNIVERSITY NHS FOUNDATION TRUST","R0A07","Wythenshawe Hospital - R0A07",532,6970,0.79887218045112784,0.12593984962406016,341,84,26,18,49,14]
["QOP","RM3","NORTHERN CARE ALLIANCE NHS FOUNDATION TRUST","RM301","Salford Royal - RM301",716,8374,0.74581005586592175,0.18994413407821228,410,124,42,46,90,4]
["QOP","RW6","PENNINE ACUTE HOSPITALS NHS TRUST","RW601","Fairfield General Hospital - RW601",580,5815,0.70862068965517244,0.22413793103448276,311,100,33,43,87,6]
["QOP","RW6","PENNINE ACUTE HOSPITALS NHS TRUST","RW604","Rochdale Infirmary - RW604",151,4335,0.81456953642384111,0.11920529801324503,89,34,9,8,10,1]
["QOP","RW6","PENNINE ACUTE HOSPITALS NHS TRUST","RW603","Royal Oldham Hospital - RW603",741,8573,0.72199730094466941,0.19568151147098514,404,131,53,43,102,8]
["QOP","RWJ","STOCKPORT NHS FOUNDATION TRUST","RWJ09","Stepping Hill Hospital - RWJ09",1155,6789,0.83203463203463202,9.7835497835497831E-2,732,229,64,39,74,17]
["QOP","RMP","TAMESIDE AND GLOSSOP INTEGRATED CARE NHS FOUNDATION TRUST","RMP01","Tameside General Hospital - RMP01",789,8356,0.61850443599493032,0.30798479087452474,369,119,57,78,165,1]
["QOP","RRF","WRIGHTINGTON, WIGAN AND LEIGH NHS FOUNDATION TRUST","RRF02","Royal Albert Edward Infirmary - RRF02",796,6903,0.68844221105527637,0.21608040201005024,405,143,61,60,112,15]
["QOQ","RCD","HARROGATE AND DISTRICT NHS FOUNDATION TRUST","RCD01","Harrogate District Hospital - RCD01",447,2597,0.8523489932885906,5.5928411633109618E-2,281,100,38,12,13,3]
["QOQ","RCD","HARROGATE AND DISTRICT NHS FOUNDATION TRUST","RCD02","Ripon and District Community Hospital - RCD02",0,23,"NA","NA",0,0,0,0,0,0]
["QOQ","RCD","HARROGATE AND DISTRICT NHS FOUNDATION TRUST","RCDXXX","WiC_MIU - RCDXXX",0,516,"NA","NA",0,0,0,0,0,0]
["QOQ","RWA","HULL UNIVERSITY TEACHING HOSPITALS NHS TRUST","RWA01","Hull Royal Infirmary - RWA01",1422,8082,0.70815752461322079,0.19057665260196907,731,276,109,118,153,35]
["QOQ","RJL","NORTHERN LINCOLNSHIRE AND GOOLE NHS FOUNDATION TRUST","RJL30","Diana, Princess Of Wales Hospital - RJL30",117,4032,0.72649572649572647,0.23076923076923078,65,20,5,14,13,0]
["QOQ","RJL","NORTHERN LINCOLNSHIRE AND GOOLE NHS FOUNDATION TRUST","RJL32","Scunthorpe General Hospital - RJL32",73,2349,0.60273972602739723,0.28767123287671231,27,17,8,7,14,0]
["QOQ","RCB","YORK AND SCARBOROUGH TEACHING HOSPITALS NHS FOUNDATION TRUST","RCBCA","Scarborough General Hospital - RCBCA",68,1642,0.72058823529411764,0.20588235294117646,37,12,5,5,9,0]
["QOQ","RCB","YORK AND SCARBOROUGH TEACHING HOSPITALS NHS FOUNDATION TRUST","RCB55","York Hospital - RCB55",277,4669,0.72924187725631773,0.15162454873646208,152,50,32,13,29,1]
["QOX","RN3","GREAT WESTERN HOSPITALS NHS FOUNDATION TRUST","RN3TC","The Brunel NHS Treatment Centre - RN3TC",610,3895,0.79016393442622945,0.1540983606557377,385,97,32,38,56,2]
["QOX","RN3","GREAT WESTERN HOSPITALS NHS FOUNDATION TRUST","RN325","The Great Western Hospital - RN325",516,3439,0.77519379844961245,0.14534883720930233,303,97,33,36,39,8]
["QOX","RD1","ROYAL UNITED HOSPITALS BATH NHS FOUNDATION TRUST","RD130","Royal United Hospital - RD130",15,5243,0.73333333333333328,0.2,"*","*","*","*","*","*"]
["QOX","RD1","ROYAL UNITED HOSPITALS BATH NHS FOUNDATION TRUST","RD1XXX","WiC_MIU - RD1XXX",2,433,"*","*","*","*","*","*","*","*"]
["QOX","RNZ","SALISBURY NHS FOUNDATION TRUST","RNZ02","Salisbury District Hospital - RNZ02",1,2838,"*","*","*","*","*","*","*","*"]
["QPM","RNQ","KETTERING GENERAL HOSPITAL NHS FOUNDATION TRUST","RNQ51","Kettering General Hospital - RNQ51",257,6227,0.72762645914396884,0.17509727626459143,125,62,23,17,28,2]
["QPM","RNS","NORTHAMPTON GENERAL HOSPITAL NHS TRUST","RNS01","Northampton General Hospital (Acute) - RNS01",1453,8751,0.76806607019958706,0.15554026152787337,837,279,96,84,142,15]
["QR1","RTE","GLOUCESTERSHIRE HOSPITALS NHS FOUNDATION TRUST","RTE01","Cheltenham General Hospital - RTE01",521,2474,0.72168905950095974,0.15547024952015356,260,116,61,24,57,3]
["QR1","RTE","GLOUCESTERSHIRE HOSPITALS NHS FOUNDATION TRUST","RTE03","Gloucestershire Royal Hospital - RTE03",822,3965,0.65328467153284675,0.24452554744525548,342,195,80,59,142,4]
["QRL","RN5","HAMPSHIRE HOSPITALS NHS FOUNDATION TRUST","RN542","Andover War Memorial Hospital - RN542",52,375,0.94230769230769229,5.7692307692307696E-2,41,8,0,2,1,0]
["QRL","RN5","HAMPSHIRE HOSPITALS NHS FOUNDATION TRUST","RN506","Basingstoke and North Hampshire Hospital - RN506",652,4107,0.83435582822085885,9.9693251533742325E-2,442,102,41,32,33,2]
["QRL","RN5","HAMPSHIRE HOSPITALS NHS FOUNDATION TRUST","RN541","Royal Hampshire County Hospital - RN541",536,3449,0.8824626865671642,6.7164179104477612E-2,386,87,26,15,21,1]
["QRL","R1F","ISLE OF WIGHT NHS TRUST","R1F01","St Mary's Hospital - R1F01",21,3144,0.90476190476190477,9.5238095238095233E-2,18,1,0,0,2,0]
["QRL","RHU","PORTSMOUTH HOSPITALS UNIVERSITY NATIONAL HEALTH SERVICE TRUST","RHU03","Queen Alexandra Hospital - RHU03",1317,8443,0.80410022779043278,0.12604403948367501,861,198,77,66,100,15]
["QRL","RHU","PORTSMOUTH HOSPITALS UNIVERSITY NATIONAL HEALTH SERVICE TRUST","RHUXXX","WiC_MIU - RHUXXX",441,2342,0.89795918367346939,6.8027210884353748E-2,337,59,14,16,14,1]
["QRL","RHM","UNIVERSITY HOSPITAL SOUTHAMPTON NHS FOUNDATION TRUST","RHM01","Southampton General Hospital - RHM01",0,8189,"NA","NA",0,0,0,0,0,0]
["QRV","RQM","CHELSEA AND WESTMINSTER HOSPITAL NHS FOUNDATION TRUST","RQM01","Chelsea and Westminster Hospital - RQM01",569,2217,0.8699472759226714,9.3145869947275917E-2,413,82,17,17,36,4]
["QRV","RQM","CHELSEA AND WESTMINSTER HOSPITAL NHS FOUNDATION TRUST","RQM91","West Middlesex University Hospital - RQM91",801,3987,0.77028714107365792,0.16354556803995007,464,153,45,53,78,8]
["QRV","RQM","CHELSEA AND WESTMINSTER HOSPITAL NHS FOUNDATION TRUST","RQMXXX","WiC_MIU - RQMXXX",1683,7963,0.76708259061200235,0.15805109922756982,952,339,114,107,159,12]
["QRV","RYJ","IMPERIAL COLLEGE HEALTHCARE NHS TRUST","RYJ02","Charing Cross Hospital - RYJ02",313,3943,0.83386581469648557,0.13418530351437699,200,61,10,15,27,0]
["QRV","RYJ","IMPERIAL COLLEGE HEALTHCARE NHS TRUST","RYJ01","St Mary's Hospital (HQ) - RYJ01",343,6469,0.72594752186588918,0.20699708454810495,203,46,23,19,52,0]
["QRV","RYJ","IMPERIAL COLLEGE HEALTHCARE NHS TRUST","RYJ07","Western Eye Hospital - RYJ07",633,3551,0.86413902053712477,7.7409162717219593E-2,431,116,36,17,32,1]
["QRV","RYJ","IMPERIAL COLLEGE HEALTHCARE NHS TRUST","RYJXXX","WiC_MIU - RYJXXX",57,2926,0.80701754385964908,0.15789473684210525,36,10,2,3,6,0]
["QRV","R1K","LONDON NORTH WEST UNIVERSITY HEALTHCARE NHS TRUST","R1K04","Ealing Hospital - R1K04",95,1197,0.98947368421052628,0,92,2,1,0,0,0]
["QRV","R1K","LONDON NORTH WEST UNIVERSITY HEALTHCARE NHS TRUST","R1K01","Northwick Park Hospital - R1K01",0,4996,"NA","NA",0,0,0,0,0,0]
["QRV","RAS","THE HILLINGDON HOSPITALS NHS FOUNDATION TRUST","RAS01","Hillingdon Hospital - RAS01",470,2970,0.69574468085106378,0.20851063829787234,216,111,42,42,56,3]
["QRV","RAS","THE HILLINGDON HOSPITALS NHS FOUNDATION TRUST","RAS02","Mount Vernon Hospital Site - RAS02",219,1235,0.8995433789954338,7.3059360730593603E-2,173,24,6,4,12,0]
["QSL","RH5","SOMERSET NHS FOUNDATION TRUST","RH5A8","Musgrove Park Hospital - RH5A8",12,4722,0.83333333333333337,8.3333333333333329E-2,"*","*","*","*","*","*"]
["QSL","RH5","SOMERSET NHS FOUNDATION TRUST","RH5XXX","Wic MIU - RH5XXX",1,7643,"*","*","*","*","*","*","*","*"]
["QSL","RA4","YEOVIL DISTRICT HOSPITAL NHS FOUNDATION TRUST","RA430","Yeovil District Hospital - RA430",41,3390,0.97560975609756095,2.4390243902439025E-2,36,4,0,0,1,0]
["QT1","RX1","NOTTINGHAM UNIVERSITY HOSPITALS NHS TRUST","RX1RA","Nottingham University Hospitals NHS Trust - Queen's Medical Centre Campus - RX1RA",142,9657,0.823943661971831,0.14788732394366197,94,23,4,3,18,0]
["QT1","RK5","SHERWOOD FOREST HOSPITALS NHS FOUNDATION TRUST","RK5BC","King's Mill Hospital - RK5BC",382,5658,0.79581151832460728,0.12303664921465969,232,72,31,20,27,0]
["QT1","RK5","SHERWOOD FOREST HOSPITALS NHS FOUNDATION TRUST","RK5XXX","WiC_MIU - RK5XXX",772,2081,0.94559585492227982,2.5906735751295335E-2,612,118,21,5,15,1]
["QT6","REF","ROYAL CORNWALL HOSPITALS NHS TRUST","REF12","Royal Cornwall Hospital (Treliske) - REF12",681,3326,0.84728340675477243,9.3979441997063137E-2,427,150,38,33,31,2]
["QT6","REF","ROYAL CORNWALL HOSPITALS NHS TRUST","REF01","West Cornwall Hospital (Penzance) - REF01",165,1297,0.91515151515151516,6.0606060606060608E-2,135,16,4,8,2,0]
["QU9","RXQ","BUCKINGHAMSHIRE HEALTHCARE NHS TRUST","RXQ02","Stoke Mandeville Hospital - RXQ02",1094,4954,0.71937842778793415,0.17458866544789761,578,209,99,81,110,17]
["QU9","RTH","OXFORD UNIVERSITY HOSPITALS NHS FOUNDATION TRUST","RTH05","Horton General Hospital - RTH05",679,2633,0.81443298969072164,0.10898379970544919,401,152,45,29,45,7]
["QU9","RTH","OXFORD UNIVERSITY HOSPITALS NHS FOUNDATION TRUST","RTH08","John Radcliffe Hospital - RTH08",1234,5063,0.69854132901134525,0.18881685575364668,597,265,122,95,138,17]
["QU9","RHW","ROYAL BERKSHIRE NHS FOUNDATION TRUST","RHW03","King Edward Vii Hospital - RHW03",17,1109,1,0,16,1,0,0,0,0]
["QU9","RHW","ROYAL BERKSHIRE NHS FOUNDATION TRUST","RHW01","Royal Berkshire Hospital - RHW01",14,9407,0.9285714285714286,0,10,3,1,0,0,0]
["QUA","RXK","SANDWELL AND WEST BIRMINGHAM HOSPITALS NHS TRUST","RXK03","Birmingham Midland Eye Centre (Bmec) - RXK03",59,407,0.64406779661016944,0.30508474576271188,24,14,2,4,14,1]
["QUA","RXK","SANDWELL AND WEST BIRMINGHAM HOSPITALS NHS TRUST","RXK02","City Hospital - RXK02",186,2016,0.69354838709677424,0.23118279569892472,86,43,12,7,36,2]
["QUA","RXK","SANDWELL AND WEST BIRMINGHAM HOSPITALS NHS TRUST","RXK01","Sandwell General Hospital - RXK01",163,1542,0.67484662576687116,0.21472392638036811,70,40,13,9,26,5]
["QUA","RNA","THE DUDLEY GROUP NHS FOUNDATION TRUST","RNA01","Russells Hall Hospital - RNA01",1005,3901,0.69154228855721389,0.17412935323383086,527,168,60,63,112,75]
["QUA","RL4","THE ROYAL WOLVERHAMPTON NHS TRUST","RL403","New Cross Hospital - RL403",1985,12420,0.68312342569269524,0.22670025188916876,"*","*","*","*","*","*"]
["QUA","RL4","THE ROYAL WOLVERHAMPTON NHS TRUST","RL402","The Phoenix Health Centre - RL402",2,2,"*","*","*","*","*","*","*","*"]
["QUA","RBK","WALSALL HEALTHCARE NHS TRUST","RBK02","Manor Hospital - RBK02",443,2978,0.76749435665914223,0.14672686230248308,219,121,33,23,42,5]
["QUE","RGT","CAMBRIDGE UNIVERSITY HOSPITALS NHS FOUNDATION TRUST","RGT01","Addenbrooke's Hospital - RGT01",1120,5999,0.85803571428571423,9.1964285714285721E-2,755,206,42,38,65,14]
["QUE","RGN","NORTH WEST ANGLIA NHS FOUNDATION TRUST","RGN90","Hinchingbrooke Hospital - RGN90",485,3006,0.75876288659793811,0.15670103092783505,250,118,36,36,40,5]
["QUE","RGN","NORTH WEST ANGLIA NHS FOUNDATION TRUST","RGN80","Peterborough City Hospital - RGN80",969,8252,0.69143446852425183,0.21568627450980393,496,174,69,81,128,21]
["QUE","RGN","NORTH WEST ANGLIA NHS FOUNDATION TRUST","RGN49","Stamford and Rutland Hospital - RGN49",100,546,0.92,0.06,86,6,2,2,4,0]
["QUY","RVJ","NORTH BRISTOL NHS TRUST","RVJ01","Southmead Hospital - RVJ01",955,4919,0.74240837696335082,0.18429319371727748,555,154,54,54,122,16]
["QUY","RA7","UNIVERSITY HOSPITALS BRISTOL AND WESTON NHS FOUNDATION TRUST","RA708","Bristol Eye Hospital - RA708",294,1831,0.91836734693877553,4.0816326530612242E-2,236,34,7,5,7,5]
["QUY","RA7","UNIVERSITY HOSPITALS BRISTOL AND WESTON NHS FOUNDATION TRUST","RA723","Bristol Royal Hospital For Children - RA723",321,3588,0.76323987538940807,0.15887850467289719,173,72,25,27,24,0]
["QUY","RA7","UNIVERSITY HOSPITALS BRISTOL AND WESTON NHS FOUNDATION TRUST","RA701","Bristol Royal Infirmary - RA701",248,4111,0.717741935483871,0.16532258064516128,137,41,25,16,25,4]
["QUY","RA7","UNIVERSITY HOSPITALS BRISTOL AND WESTON NHS FOUNDATION TRUST","RA7C2","Weston General Hospital - RA7C2",380,2460,0.84736842105263155,0.10263157894736842,270,52,16,13,26,3]
["QVV","RBD","DORSET COUNTY HOSPITAL NHS FOUNDATION TRUST","RBD01","Dorset County Hospital - RBD01",864,2439,0.86805555555555558,7.8703703703703706E-2,605,145,38,32,36,8]
["QVV","R0D","UNIVERSITY HOSPITALS DORSET NHS FOUNDATION TRUST","R0D01","Poole Hospital - R0D01",641,2598,0.85803432137285496,8.4243369734789394E-2,421,129,29,19,35,8]
["QVV","R0D","UNIVERSITY HOSPITALS DORSET NHS FOUNDATION TRUST","R0D02","Royal Bourenmouth Hospital - R0D02",491,6364,0.74134419551934827,0.18329938900203666,267,97,32,29,61,5]
["QWE","RJ6","CROYDON HEALTH SERVICES NHS TRUST","RJ611","Croydon University Hospital - RJ611",1018,6037,0.79862475442043224,0.12278978388998035,632,181,75,49,76,5]
["QWE","RJ6","CROYDON HEALTH SERVICES NHS TRUST","RJ6XXX","WiC_MIU - RJ6XXX",179,6582,0.88268156424581001,7.8212290502793297E-2,125,33,7,4,10,0]
["QWE","RVR","EPSOM AND ST HELIER UNIVERSITY HOSPITALS NHS TRUST","RVR50","Epsom Hospital - RVR50",630,4405,0.83333333333333337,9.5238095238095233E-2,429,96,39,28,32,6]
["QWE","RVR","EPSOM AND ST HELIER UNIVERSITY HOSPITALS NHS TRUST","RVR05","St Helier Hospital - RVR05",784,6096,0.78826530612244894,0.12882653061224489,452,166,54,47,54,11]
["QWE","RAX","KINGSTON HOSPITAL NHS FOUNDATION TRUST","RAX01","Kingston Hospital - RAX01",621,3503,0.69726247987117551,0.21256038647342995,299,134,51,51,81,5]
["QWE","RAX","KINGSTON HOSPITAL NHS FOUNDATION TRUST","RAXXXX","WiC_MIU - RAXXXX",574,2837,0.83449477351916379,0.10278745644599303,377,102,35,28,31,1]
["QWE","RJ7","ST GEORGE'S UNIVERSITY HOSPITALS NHS FOUNDATION TRUST","RJ701","St George's Hospital (Tooting) - RJ701",1195,9726,0.75481171548117154,0.17489539748953975,624,278,80,84,125,4]
["QWO","RCF","AIREDALE NHS FOUNDATION TRUST","RCF22","Airedale General Hospital - RCF22",560,2739,0.83750000000000002,0.1125,369,100,24,23,40,4]
["QWO","RAE","BRADFORD TEACHING HOSPITALS NHS FOUNDATION TRUST","RAE01","Bradford Royal Infirmary - RAE01",1303,6388,0.59938603223330778,0.30698388334612431,570,211,89,116,284,33]
["QWO","RWY","CALDERDALE AND HUDDERSFIELD NHS FOUNDATION TRUST","RWY02","Calderdale Royal Hospital - RWY02",435,5910,0.81149425287356325,0.1103448275862069,292,61,31,20,28,3]
["QWO","RWY","CALDERDALE AND HUDDERSFIELD NHS FOUNDATION TRUST","RWY01","Huddersfield Royal Infirmary - RWY01",417,5270,0.84412470023980812,0.1079136690647482,281,71,17,14,31,3]
["QWO","RR8","LEEDS TEACHING HOSPITALS NHS TRUST","RR801","Leeds General Infirmary - RR801",1509,9288,0.74420145791915171,0.1709741550695825,786,337,114,90,168,14]
["QWO","RR8","LEEDS TEACHING HOSPITALS NHS TRUST","RR813","St James's University Hospital - RR813",626,4198,0.6821086261980831,0.23482428115015974,315,112,44,48,99,8]
["QWO","RXF","MID YORKSHIRE HOSPITALS NHS TRUST","RXF10","Dewsbury and District Hospital - RXF10",343,4099,0.73177842565597673,0.18367346938775511,194,57,28,23,40,1]
["QWO","RXF","MID YORKSHIRE HOSPITALS NHS TRUST","RXF05","Pinderfields General Hospital - RXF05",552,4577,0.60144927536231885,0.30072463768115942,217,115,54,66,100,0]
["QWO","RXF","MID YORKSHIRE HOSPITALS NHS TRUST","RXF03","Pontefract General Infirmary - RXF03",171,2663,0.76023391812865493,0.17543859649122806,105,25,10,11,19,1]
["QWU","RLT","GEORGE ELIOT HOSPITAL NHS TRUST","RLT01","George Eliot Hospital - Acute Services - RLT01",1828,4596,0.80579868708971558,0.13019693654266959,1075,398,97,95,143,20]
["QWU","RJC","SOUTH WARWICKSHIRE NHS FOUNDATION TRUST","RJC02","Warwick Hospital - RJC02",2,3444,"*","*","*","*","*","*","*","*"]
["QWU","RKB","UNIVERSITY HOSPITALS COVENTRY AND WARWICKSHIRE NHS TRUST","RKB03","Hospital Of St Cross - RKB03",327,1872,0.82262996941896027,0.10397553516819572,"*","*","*","*","*","*"]
["QWU","RKB","UNIVERSITY HOSPITALS COVENTRY AND WARWICKSHIRE NHS TRUST","RKB01","University Hospital (Coventry) - RKB01",1219,9472,0.68826907301066453,0.22313371616078753,605,234,83,98,174,25]
["QWU","RKB","UNIVERSITY HOSPITALS COVENTRY AND WARWICKSHIRE NHS TRUST","RKBXXX","WiC_MIU - RKBXXX",62,4454,0.75806451612903225,0.20967741935483872,"*","*","*","*","*","*"]
["QXU","RTK","ASHFORD AND ST PETER'S HOSPITALS NHS FOUNDATION TRUST","RTK01","St Peter's Hospital - RTK01",316,4121,0.78481012658227844,0.14556962025316456,172,76,22,21,25,0]
["QXU","RA2","ROYAL SURREY COUNTY HOSPITAL NHS FOUNDATION TRUST","RA201","Royal Surrey County Hospital - RA201",575,3442,0.84695652173913039,9.913043478260869E-2,369,118,31,26,31,0]
["QXU","RA2","ROYAL SURREY COUNTY HOSPITAL NHS FOUNDATION TRUST","RA2XXX","WiC_MIU - RA2XXX",95,328,0.93684210526315792,3.1578947368421054E-2,71,18,3,1,2,0]
["QXU","RTP","SURREY AND SUSSEX HEALTHCARE NHS TRUST","RTP04","East Surrey Hospital - RTP04",676,5664,0.83136094674556216,0.10355029585798817,438,124,42,33,37,2]
["QYG","RBS","ALDER HEY CHILDREN'S NHS FOUNDATION TRUST","RBS25","Alder Hey Children's NHS - RBS25",327,6183,0.64220183486238536,0.25993883792048927,139,71,32,32,53,0]
["QYG","RJN","EAST CHESHIRE NHS TRUST","RJN71","Macclesfield District General Hospital - RJN71",634,2771,0.80126182965299686,0.12933753943217666,412,96,38,32,50,6]
["QYG","REM","LIVERPOOL UNIVERSITY HOSPITALS NHS FOUNDATION TRUST","REMRQ","Royal Liverpool University Hospital - REMRQ",923,5487,0.58071505958829905,0.32936078006500541,386,150,64,91,213,19]
["QYG","REM","LIVERPOOL UNIVERSITY HOSPITALS NHS FOUNDATION TRUST","REM21","University Hospital Aintree - REM21",803,3914,0.63511830635118305,0.25404732254047324,395,115,60,56,148,29]
["QYG","REP","LIVERPOOL WOMEN'S NHS FOUNDATION TRUST","REP01","Liverpool Womens Hospital - REP01",29,886,0.86206896551724133,0.10344827586206896,21,4,1,3,0,0]
["QYG","RBT","MID CHESHIRE HOSPITALS NHS FOUNDATION TRUST","RBT20","Leighton Hospital - RBT20",632,4977,0.83860759493670889,9.1772151898734181E-2,413,117,36,23,35,8]
["QYG","RBT","MID CHESHIRE HOSPITALS NHS FOUNDATION TRUST","RBTXXX","WiC_MIU - RBTXXX",213,2133,0.95774647887323938,1.8779342723004695E-2,188,16,5,3,1,0]
["QYG","RVY","SOUTHPORT AND ORMSKIRK HOSPITAL NHS TRUST","RVY02","Ormskirk and District General Hospital - RVY02",308,1882,0.89610389610389607,8.4415584415584416E-2,230,46,6,18,8,0]
["QYG","RVY","SOUTHPORT AND ORMSKIRK HOSPITAL NHS TRUST","RVY01","Southport and Formby District General Hospital - RVY01",691,2640,0.83357452966714907,0.13169319826338641,442,134,23,45,46,1]
["QYG","RBN","ST HELENS AND KNOWSLEY TEACHING HOSPITALS NHS TRUST","RBN01","Whiston Hospital - RBN01",656,4819,0.79420731707317072,0.10518292682926829,415,106,53,31,38,13]
["QYG","RWW","WARRINGTON AND HALTON TEACHING HOSPITALS NHS FOUNDATION TRUST","RWWHG","Halton Hospital - RWWHG",547,2488,0.8135283363802559,0.11334552102376599,355,90,30,18,44,10]
["QYG","RWW","WARRINGTON AND HALTON TEACHING HOSPITALS NHS FOUNDATION TRUST","RWWWH","Warrington Hospital - RWWWH",1183,6216,0.69146238377007607,0.22654268808114961,603,215,76,98,170,21]
["QYG","RBL","WIRRAL UNIVERSITY TEACHING HOSPITAL NHS FOUNDATION TRUST","RBL14","Arrowe Park Hospital - RBL14",576,4325,0.72395833333333337,0.1892361111111111,291,126,43,39,70,7]

{"sheet":"BS","index":5,"n_rows":236,"n_cols":33,"rows_kept":236,"cut":false,"hidden":true,"merged":[]}
[null,"Sort","Region (LO) Code","Region (LO) name","Trust code","Trust name","Site Code","Site Name",null,"Sort Lists:","Sort range…","Sort range…","Sort range…","Reference Region List:","Code…","Name…","Linked Region List:","Code…","Name…","Reference Lists:","Code…","Code…","Name…","Code…","Name…","Trusts Linked Lists:","Code…","Name…","Sites Linked Lists:","Code…","Name…","Code…","Name…"]
["Region (LO)",1,1,1,"-","-","-","-",null,null,"STP Code","STP Code","STP Code",null,"QE1","LANCASHIRE AND SOUTH CUMBRIA ICS",null,"QE1","LANCASHIRE AND SOUTH CUMBRIA ICS",null,"QE1","RXL","BLACKPOOL TEACHING HOSPITALS NHS FOUNDATION TRUST","RXL01","Blackpool Victoria Hospital - RXL01",null,"R0A","AIREDALE NHS FOUNDATION TRUST",null,"R0A","AIREDALE NHS FOUNDATION TRUST","E0A3H","Addenbrooke's Hospital - RGT01"]
["Trusts",1,1,1,1,1,"-","-",null,null,"STP Name","Trust Code","Trust Code",null,"QF7","SOUTH YORKSHIRE AND BASSETLAW STP",null,"QF7","SOUTH YORKSHIRE AND BASSETLAW STP",null,"QE1","RXR","EAST LANCASHIRE HOSPITALS NHS TRUST","RXR20","Royal Blackburn Hospital - RXR20",null,"R0B","ALDER HEY CHILDREN'S NHS FOUNDATION TRUST",null,"R0B","ALDER HEY CHILDREN'S NHS FOUNDATION TRUST","G0W1C","Airedale General Hospital - RCF22"]
["Site",1,1,1,1,1,1,1,null,null,"Total Responses","Trust Name","Trust Name",null,"QGH","HEREFORDSHIRE AND WORCESTERSHIRE STP",null,"QGH","HEREFORDSHIRE AND WORCESTERSHIRE STP",null,"QE1","RXN","LANCASHIRE TEACHING HOSPITALS NHS FOUNDATION TRUST","RXN01","Chorley and South Ribble Hospital - RXN01",null,"R0D","ASHFORD AND ST PETER'S HOSPITALS NHS FOUNDATION TRUST",null,"R0D","ASHFORD AND ST PETER'S HOSPITALS NHS FOUNDATION TRUST","N6J7V","Alder Hey Children's NHS - RBS25"]
[null,null,null,null,null,null,null,null,null,null,"Total Eligible","Total Responses","Site Code",null,"QH8","MID AND SOUTH ESSEX STP",null,"QH8","MID AND SOUTH ESSEX STP",null,"QE1","RXN","LANCASHIRE TEACHING HOSPITALS NHS FOUNDATION TRUST","RXN02","Royal Preston Hospital - RXN02",null,"R1F","BARKING, HAVERING AND REDBRIDGE UNIVERSITY HOSPITALS NHS TRUST",null,"R1F","BARKING, HAVERING AND REDBRIDGE UNIVERSITY HOSPITALS NHS TRUST","R0A02","Alexandra Hospital - RWP01"]
[null,null,null,null,null,null,null,null,null,null,"Percentage Positive","Total Eligible","Site Name",null,"QHG","BEDFORDSHIRE, LUTON AND MILTON KEYNES STP",null,"QHG","BEDFORDSHIRE, LUTON AND MILTON KEYNES STP",null,"QE1","RTX","UNIVERSITY HOSPITALS OF MORECAMBE BAY NHS FOUNDATION TRUST","RTXBU","Furness General Hospital - RTXBU",null,"R1H","BARNSLEY HOSPITAL NHS FOUNDATION TRUST",null,"R1H","BARNSLEY HOSPITAL NHS FOUNDATION TRUST","R0A03","Andover War Memorial Hospital - RN542"]
[null,null,null,null,null,null,null,null,null,null,"Percentage Negative","Percentage Positive","Total Responses",null,"QHL","BIRMINGHAM AND SOLIHULL STP",null,"QHL","BIRMINGHAM AND SOLIHULL STP",null,"QE1","RTX","UNIVERSITY HOSPITALS OF MORECAMBE BAY NHS FOUNDATION TRUST","RTX02","Royal Lancaster Infirmary - RTX02",null,"R1K","BARTS HEALTH NHS TRUST",null,"R1K","BARTS HEALTH NHS TRUST","R0A04","Arrowe Park Hospital - RBL14"]
[null,null,null,null,null,null,null,null,null,null,"Very Good","Percentage Negative","Total Eligible",null,"QHM","CUMBRIA AND NORTH EAST STP",null,"QHM","CUMBRIA AND NORTH EAST STP",null,"QE1","RTX","UNIVERSITY HOSPITALS OF MORECAMBE BAY NHS FOUNDATION TRUST","RTXBW","Westmorland General Hospital - RTXBW",null,"RA2","BEDFORDSHIRE HOSPITALS NHS FOUNDATION TRUST",null,"RA2","BEDFORDSHIRE HOSPITALS NHS FOUNDATION TRUST","R0A05","Barnet Hospital - RAL26"]
[null,null,null,null,null,null,null,null,null,null,"Good","Very Good","Percentage Positive",null,"QJ2","JOINED UP CARE DERBYSHIRE STP",null,"QJ2","JOINED UP CARE DERBYSHIRE STP",null,"QF7","RFF","BARNSLEY HOSPITAL NHS FOUNDATION TRUST","RFFAA","Barnsley Hospital NHS Foundation Trust HQ - RFFAA",null,"RA4","BLACKPOOL TEACHING HOSPITALS NHS FOUNDATION TRUST",null,"RA4","BLACKPOOL TEACHING HOSPITALS NHS FOUNDATION TRUST","R0A07","Barnsley Hospital NHS Foundation Trust HQ - RFFAA"]
[null,null,null,null,null,null,null,null,null,null,"Neither Good nor Poor","Good","Percentage Negative",null,"QJG","SUFFOLK AND NORTH EAST ESSEX ICS",null,"QJG","SUFFOLK AND NORTH EAST ESSEX ICS",null,"QF7","RP5","DONCASTER AND BASSETLAW TEACHING HOSPITALS NHS FOUNDATION TRUST","RP5BA","Bassetlaw Hospital - RP5BA",null,"RA7","BOLTON NHS FOUNDATION TRUST",null,"RA7","BOLTON NHS FOUNDATION TRUST","R0A09","Basildon Hospital - RAJ12"]
[null,null,null,null,null,null,null,null,null,null,"Poor","Neither Good nor Poor","Very Good",null,"QJK","DEVON STP",null,"QJK","DEVON STP",null,"QF7","RP5","DONCASTER AND BASSETLAW TEACHING HOSPITALS NHS FOUNDATION TRUST","RP5DR","Doncaster Royal Infirmary - RP5DR",null,"RA9","BRADFORD TEACHING HOSPITALS NHS FOUNDATION TRUST",null,"RA9","BRADFORD TEACHING HOSPITALS NHS FOUNDATION TRUST","R0A66","Basingstoke and North Hampshire Hospital - RN506"]
[null,null,null,null,null,null,null,null,null,null,"Very Poor","Poor","Good",null,"QJM","LINCOLNSHIRE STP",null,"QJM","LINCOLNSHIRE STP",null,"QF7","RP5","DONCASTER AND BASSETLAW TEACHING HOSPITALS NHS FOUNDATION TRUST","RP5MM","Montagu Hospital - RP5MM",null,"RAE","BUCKINGHAMSHIRE HEALTHCARE NHS TRUST",null,"RAE","BUCKINGHAMSHIRE HEALTHCARE NHS TRUST","R0B01","Bassetlaw Hospital - RP5BA"]
[null,null,null,null,null,null,null,null,null,null,"Don't Know","Very Poor","Neither Good nor Poor",null,"QK1","LEICESTER, LEICESTERSHIRE AND RUTLAND STP",null,"QK1","LEICESTER, LEICESTERSHIRE AND RUTLAND STP",null,"QF7","RCU","SHEFFIELD CHILDREN'S NHS FOUNDATION TRUST","RCUEF","Sheffield Children's Hospital - RCUEF",null,"RAJ","CALDERDALE AND HUDDERSFIELD NHS FOUNDATION TRUST",null,"RAJ","CALDERDALE AND HUDDERSFIELD NHS FOUNDATION TRUST","R0B0Q","Bedford Hospital South Wing - RC979"]
[null,null,null,null,null,null,null,null,null,null,null,"Don't Know","Poor",null,"QKK","OUR HEALTHIER SOUTH EAST LONDON STP",null,"QKK","OUR HEALTHIER SOUTH EAST LONDON STP",null,"QF7","RHQ","SHEFFIELD TEACHING HOSPITALS NHS FOUNDATION TRUST","RHQNG","Northern General Hospital - RHQNG",null,"RAL","CAMBRIDGE UNIVERSITY HOSPITALS NHS FOUNDATION TRUST",null,"RAL","CAMBRIDGE UNIVERSITY HOSPITALS NHS FOUNDATION TRUST","R0B0X","Birmingham Midland Eye Centre (Bmec) - RXK03"]
[null,null,null,null,null,null,null,null,null,null,null,"Mode SMS","Very Poor",null,"QKS","KENT AND MEDWAY STP",null,"QKS","KENT AND MEDWAY STP",null,"QF7","RHQ","SHEFFIELD TEACHING HOSPITALS NHS FOUNDATION TRUST","RHQHH","Royal Hallamshire Hospital - RHQHH",null,"RAP","CHELSEA AND WESTMINSTER HOSPITAL NHS FOUNDATION TRUST",null,"RAP","CHELSEA AND WESTMINSTER HOSPITAL NHS FOUNDATION TRUST","R0D01","Blackpool Victoria Hospital - RXL01"]
[null,null,null,null,null,null,null,null,null,null,null,"Mode Electronic Discharge","Don't Know",null,"QM7","HERTFORDSHIRE AND WEST ESSEX STP",null,"QM7","HERTFORDSHIRE AND WEST ESSEX STP",null,"QF7","RHQ","SHEFFIELD TEACHING HOSPITALS NHS FOUNDATION TRUST","RHQXXX","WiC_MIU - RHQXXX",null,"RAS","CHESTERFIELD ROYAL HOSPITAL NHS FOUNDATION TRUST",null,"RAS","CHESTERFIELD ROYAL HOSPITAL NHS FOUNDATION TRUST","R0D02","Bradford Royal Infirmary - RAE01"]
[null,null,null,null,null,null,null,null,null,null,null,"Mode Paper Discharge",null,null,"QMF","EAST LONDON HEALTH & CARE PARTNERSHIP (STP)",null,"QMF","EAST LONDON HEALTH & CARE PARTNERSHIP (STP)",null,"QF7","RFR","THE ROTHERHAM NHS FOUNDATION TRUST","RFRPA","Rotherham District General Hospital - RFRPA",null,"RAX","CROYDON HEALTH SERVICES NHS TRUST",null,"RAX","CROYDON HEALTH SERVICES NHS TRUST","R1F01","Bristol Eye Hospital - RA708"]
[null,null,null,null,null,null,null,null,null,null,null,"Mode Paper Home",null,null,"QMJ","NORTH LONDON PARTNERS IN HEALTH & CARE (STP)",null,"QMJ","NORTH LONDON PARTNERS IN HEALTH & CARE (STP)",null,"QGH","RWP","WORCESTERSHIRE ACUTE HOSPITALS NHS TRUST","RWP01","Alexandra Hospital - RWP01",null,"RBD","DARTFORD AND GRAVESHAM NHS TRUST",null,"RBD","DARTFORD AND GRAVESHAM NHS TRUST","R1H12","Bristol Royal Hospital For Children - RA723"]
[null,null,null,null,null,null,null,null,null,null,null,"Mode Telephone",null,null,"QMM","NORFOLK AND WAVENEY HEALTH & CARE PARTNERSHIP (STP)",null,"QMM","NORFOLK AND WAVENEY HEALTH & CARE PARTNERSHIP (STP)",null,"QGH","RWP","WORCESTERSHIRE ACUTE HOSPITALS NHS TRUST","RWP31","Kidderminster Hospital - RWP31",null,"RBK","DONCASTER AND BASSETLAW TEACHING HOSPITALS NHS FOUNDATION TRUST",null,"RBK","DONCASTER AND BASSETLAW TEACHING HOSPITALS NHS FOUNDATION TRUST","R1HKH","Bristol Royal Infirmary - RA701"]
[null,null,null,null,null,null,null,null,null,null,null,"Mode Online",null,null,"QNC","STAFFORDSHIRE & STOKE ON TRENT STP",null,"QNC","STAFFORDSHIRE & STOKE ON TRENT STP",null,"QGH","RWP","WORCESTERSHIRE ACUTE HOSPITALS NHS TRUST","RWP50","Worcestershire Royal Hospital - RWP50",null,"RBL","DORSET COUNTY HOSPITAL NHS FOUNDATION TRUST",null,"RBL","DORSET COUNTY HOSPITAL NHS FOUNDATION TRUST","R1HM0","Buckland Hospital - RVV02"]
[null,null,null,null,null,null,null,null,null,null,null,"Mode Other",null,null,"QNQ","FRIMLEY HEALTH & CARE (STP)",null,"QNQ","FRIMLEY HEALTH & CARE (STP)",null,"QGH","RLQ","WYE VALLEY NHS TRUST","RLQ01","Hereford County Hospital - RLQ01",null,"RBN","EAST AND NORTH HERTFORDSHIRE NHS TRUST",null,"RBN","EAST AND NORTH HERTFORDSHIRE NHS TRUST","R1HNH","Calderdale Royal Hospital - RWY02"]
[null,null,null,null,null,null,null,null,null,null,null,null,null,null,"QNX","SUSSEX HEALTH AND CARE PARTNERSHIP",null,"QNX","SUSSEX HEALTH AND CARE PARTNERSHIP",null,"QH8","RAJ","MID AND SOUTH ESSEX NHS FOUNDATION TRUST","RAJ12","Basildon Hospital - RAJ12",null,"RBS","EAST CHESHIRE NHS TRUST",null,"RBS","EAST CHESHIRE NHS TRUST","R1HXXX","Charing Cross Hospital - RYJ02"]
[null,null,null,null,null,null,null,null,null,null,null,null,null,null,"QOC","SHROPSHIRE AND TELFORD AND WREKIN STP",null,"QOC","SHROPSHIRE AND TELFORD AND WREKIN STP",null,"QH8","RAJ","MID AND SOUTH ESSEX NHS FOUNDATION TRUST","RAJ32","Mid Essex Hospital - RAJ32",null,"RBT","EAST KENT HOSPITALS UNIVERSITY NHS FOUNDATION TRUST",null,"RBT","EAST KENT HOSPITALS UNIVERSITY NHS FOUNDATION TRUST","R1K01","Chelsea and Westminster Hospital - RQM01"]
[null,null,null,null,null,null,null,null,null,null,null,null,null,null,"QOP","GREATER MANCHESTER HEALTH & SOCIAL CARE PARTNERSHIP",null,"QOP","GREATER MANCHESTER HEALTH & SOCIAL CARE PARTNERSHIP",null,"QH8","RAJ","MID AND SOUTH ESSEX NHS FOUNDATION TRUST","RAJ01","Southend Hospital - RAJ01",null,"RBZ","EAST LANCASHIRE HOSPITALS NHS TRUST",null,"RBZ","EAST LANCASHIRE HOSPITALS NHS TRUST","R1K04","Cheltenham General Hospital - RTE01"]
[null,null,null,null,null,null,null,null,null,null,null,null,null,null,"QOQ","HUMBER, COAST AND VALE STP",null,"QOQ","HUMBER, COAST AND VALE STP",null,"QHG","RC9","BEDFORDSHIRE HOSPITALS NHS FOUNDATION TRUST","RC979","Bedford Hospital South Wing - RC979",null,"RC9","EAST SUFFOLK AND NORTH ESSEX NHS FOUNDATION TRUST",null,"RC9","EAST SUFFOLK AND NORTH ESSEX NHS FOUNDATION TRUST","RA201","Chesterfield Royal Hospital - RFSDA"]
[null,null,null,null,null,null,null,null,null,null,null,null,null,null,"QOX","BATH AND NORTH EAST SOMERSET, SWINDON AND WILTSHIRE STP",null,"QOX","BATH AND NORTH EAST SOMERSET, SWINDON AND WILTSHIRE STP",null,"QHG","RC9","BEDFORDSHIRE HOSPITALS NHS FOUNDATION TRUST","RC971","Luton and Dunstable Hospital - RC971",null,"RCB","EAST SUSSEX HEALTHCARE NHS TRUST",null,"RCB","EAST SUSSEX HEALTHCARE NHS TRUST","RA2XXX","Chorley and South Ribble Hospital - RXN01"]
[null,null,null,null,null,null,null,null,null,null,null,null,null,null,"QPM","NORTHAMPTONSHIRE STP",null,"QPM","NORTHAMPTONSHIRE STP",null,"QHG","RD8","MILTON KEYNES UNIVERSITY HOSPITAL NHS FOUNDATION TRUST","RD816","Milton Keynes Hospital - RD816",null,"RCD","EPSOM AND ST HELIER UNIVERSITY HOSPITALS NHS TRUST",null,"RCD","EPSOM AND ST HELIER UNIVERSITY HOSPITALS NHS TRUST","RA430","City Hospital - RXK02"]
[null,null,null,null,null,null,null,null,null,null,null,null,null,null,"QR1","GLOUCESTERSHIRE STP",null,"QR1","GLOUCESTERSHIRE STP",null,"QHL","RRK","UNIVERSITY HOSPITALS BIRMINGHAM NHS FOUNDATION TRUST","RRK98","Good Hope Hospital - RRK98",null,"RCF","FRIMLEY HEALTH NHS FOUNDATION TRUST",null,"RCF","FRIMLEY HEALTH NHS FOUNDATION TRUST","RA701","Colchester General Hospital - RDEE4"]
[null,null,null,null,null,null,null,null,null,null,null,null,null,null,"QRL","HAMPSHIRE AND THE ISLE OF WIGHT STP",null,"QRL","HAMPSHIRE AND THE ISLE OF WIGHT STP",null,"QHL","RRK","UNIVERSITY HOSPITALS BIRMINGHAM NHS FOUNDATION TRUST","RRK97","Heartlands Hospital - RRK97",null,"RCU","GATESHEAD HEALTH NHS FOUNDATION TRUST",null,"RCU","GATESHEAD HEALTH NHS FOUNDATION TRUST","RA708","Conquest Hospital - RXC01"]
[null,null,null,null,null,null,null,null,null,null,null,null,null,null,"QRV","NORTH WEST LONDON HEALTH & CARE PARTNERSHIP (STP)",null,"QRV","NORTH WEST LONDON HEALTH & CARE PARTNERSHIP (STP)",null,"QHL","RRK","UNIVERSITY HOSPITALS BIRMINGHAM NHS FOUNDATION TRUST","RRK15","Queen Elizabeth Hospital Birmingham - RRK15",null,"RCX","GEORGE ELIOT HOSPITAL NHS TRUST",null,"RCX","GEORGE ELIOT HOSPITAL NHS TRUST","RA723","County Hospital - RJE09"]
[null,null,null,null,null,null,null,null,null,null,null,null,null,null,"QSL","SOMERSET STP",null,"QSL","SOMERSET STP",null,"QHM","RR7","GATESHEAD HEALTH NHS FOUNDATION TRUST","RR7EN","Queen Elizabeth Hospital - RR7EN",null,"RD1","GLOUCESTERSHIRE HOSPITALS NHS FOUNDATION TRUST",null,"RD1","GLOUCESTERSHIRE HOSPITALS NHS FOUNDATION TRUST","RA7C2","Croydon University Hospital - RJ611"]
[null,null,null,null,null,null,null,null,null,null,null,null,null,null,"QT1","NOTTINGHAM AND NOTTINGHAMSHIRE HEALTH AND CARE STP",null,"QT1","NOTTINGHAM AND NOTTINGHAMSHIRE HEALTH AND CARE STP",null,"QHM","RR7","GATESHEAD HEALTH NHS FOUNDATION TRUST","RR7XXX","WiC_MIU - RR7XXX",null,"RD8","GREAT WESTERN HOSPITALS NHS FOUNDATION TRUST",null,"RD8","GREAT WESTERN HOSPITALS NHS FOUNDATION TRUST","RA901","Cumberland Infirmary - RNN62"]
[null,null,null,null,null,null,null,null,null,null,null,null,null,null,"QT6","CORNWALL AND THE ISLES OF SCILLY HEALTH & SOCIAL CARE PARTNERSHIP (STP)",null,"QT6","CORNWALL AND THE ISLES OF SCILLY HEALTH & SOCIAL CARE PARTNERSHIP (STP)",null,"QHM","RNN","NORTH CUMBRIA INTEGRATED CARE NHS FOUNDATION TRUST","RNN62","Cumberland Infirmary - RNN62",null,"RDE","GUY'S AND ST THOMAS' NHS FOUNDATION TRUST",null,"RDE","GUY'S AND ST THOMAS' NHS FOUNDATION TRUST","RAE01","Darent Valley Hospital - RN707"]
[null,null,null,null,null,null,null,null,null,null,null,null,null,null,"QU9","BUCKINGHAMSHIRE, OXFORDSHIRE AND BERKSHIRE WEST STP",null,"QU9","BUCKINGHAMSHIRE, OXFORDSHIRE AND BERKSHIRE WEST STP",null,"QHM","RNN","NORTH CUMBRIA INTEGRATED CARE NHS FOUNDATION TRUST","RNNBX","West Cumberland Hospital - RNNBX",null,"RDU","HAMPSHIRE HOSPITALS NHS FOUNDATION TRUST",null,"RDU","HAMPSHIRE HOSPITALS NHS FOUNDATION TRUST","RAJ01","Derriford Hospital - RK950"]
[null,null,null,null,null,null,null,null,null,null,null,null,null,null,"QUA","THE BLACK COUNTRY AND WEST BIRMINGHAM STP",null,"QUA","THE BLACK COUNTRY AND WEST BIRMINGHAM STP",null,"QHM","RVW","NORTH TEES AND HARTLEPOOL NHS FOUNDATION TRUST","RVWAE","University Hospital Of North Tees - RVWAE",null,"REF","HARROGATE AND DISTRICT NHS FOUNDATION TRUST",null,"REF","HARROGATE AND DISTRICT NHS FOUNDATION TRUST","RAJ12","Dewsbury and District Hospital - RXF10"]
[null,null,null,null,null,null,null,null,null,null,null,null,null,null,"QUE","CAMBRIDGESHIRE AND PETERBOROUGH STP",null,"QUE","CAMBRIDGESHIRE AND PETERBOROUGH STP",null,"QHM","RTF","NORTHUMBRIA HEALTHCARE NHS FOUNDATION TRUST","RTF86","The Northumbria - RTF86",null,"REM","HOMERTON UNIVERSITY HOSPITAL NHS FOUNDATION TRUST",null,"REM","HOMERTON UNIVERSITY HOSPITAL NHS FOUNDATION TRUST","RAJ32","Diana, Princess Of Wales Hospital - RJL30"]
[null,null,null,null,null,null,null,null,null,null,null,null,null,null,"QUY","BRISTOL, NORTH SOMERSET AND SOUTH GLOUCESTERSHIRE STP",null,"QUY","BRISTOL, NORTH SOMERSET AND SOUTH GLOUCESTERSHIRE STP",null,"QHM","RTF","NORTHUMBRIA HEALTHCARE NHS FOUNDATION TRUST","RTFXXX","WiC_MIU - RTFXXX",null,"REP","HULL UNIVERSITY TEACHING HOSPITALS NHS TRUST",null,"REP","HULL UNIVERSITY TEACHING HOSPITALS NHS TRUST","RAL01","Doncaster Royal Infirmary - RP5DR"]
[null,null,null,null,null,null,null,null,null,null,null,null,null,null,"QVV","DORSET STP",null,"QVV","DORSET STP",null,"QHM","RTR","SOUTH TEES HOSPITALS NHS FOUNDATION TRUST","RTR45","Friarage Hospital Site - RTR45",null,"RF4","IMPERIAL COLLEGE HEALTHCARE NHS TRUST",null,"RF4","IMPERIAL COLLEGE HEALTHCARE NHS TRUST","RAL26","Dorset County Hospital - RBD01"]
[null,null,null,null,null,null,null,null,null,null,null,null,null,null,"QWE","SOUTH WEST LONDON HEALTH & CARE PARTNERSHIP (STP)",null,"QWE","SOUTH WEST LONDON HEALTH & CARE PARTNERSHIP (STP)",null,"QHM","RTR","SOUTH TEES HOSPITALS NHS FOUNDATION TRUST","RTRAT","The James Cook University Hospital - RTRAT",null,"RFF","ISLE OF WIGHT NHS TRUST",null,"RFF","ISLE OF WIGHT NHS TRUST","RALXXX","Ealing Hospital - R1K04"]
[null,null,null,null,null,null,null,null,null,null,null,null,null,null,"QWO","WEST YORKSHIRE AND HARROGATE HEALTH & CARE PARTNERSHIP (STP)",null,"QWO","WEST YORKSHIRE AND HARROGATE HEALTH & CARE PARTNERSHIP (STP)",null,"QHM","RTR","SOUTH TEES HOSPITALS NHS FOUNDATION TRUST","RTRXXX","WiC_MIU - RTRXXX",null,"RFR","JAMES PAGET UNIVERSITY HOSPITALS NHS FOUNDATION TRUST",null,"RFR","JAMES PAGET UNIVERSITY HOSPITALS NHS FOUNDATION TRUST","RAPNM","East Surrey Hospital - RTP04"]
[null,null,null,null,null,null,null,null,null,null,null,null,null,null,"QWU","COVENTRY AND WARWICKSHIRE STP",null,"QWU","COVENTRY AND WARWICKSHIRE STP",null,"QHM","R0B","SOUTH TYNESIDE AND SUNDERLAND NHS FOUNDATION TRUST","R0B0Q","South Tyneside District Hospital - R0B0Q",null,"RFS","KETTERING GENERAL HOSPITAL NHS FOUNDATION TRUST",null,"RFS","KETTERING GENERAL HOSPITAL NHS FOUNDATION TRUST","RAS01","Eastbourne District General Hospital - RXC02"]
[null,null,null,null,null,null,null,null,null,null,null,null,null,null,"QXU","SURREY HEARTLANDS HEALTH & CARE PARTNERSHIP (STP)",null,"QXU","SURREY HEARTLANDS HEALTH & CARE PARTNERSHIP (STP)",null,"QHM","R0B","SOUTH TYNESIDE AND SUNDERLAND NHS FOUNDATION TRUST","R0B0X","Sunderland Eye Infirmary – R0B0X",null,"RGN","KING'S COLLEGE HOSPITAL NHS FOUNDATION TRUST",null,"RGN","KING'S COLLEGE HOSPITAL NHS FOUNDATION TRUST","RAS02","Epsom Hospital - RVR50"]
[null,null,null,null,null,null,null,null,null,null,null,null,null,null,"QYG","CHESHIRE AND MERSEYSIDE STP",null,"QYG","CHESHIRE AND MERSEYSIDE STP",null,"QHM","R0B","SOUTH TYNESIDE AND SUNDERLAND NHS FOUNDATION TRUST","R0B01","Sunderland Royal Hospital – R0B01",null,"RGP","KINGSTON HOSPITAL NHS FOUNDATION TRUST",null,"RGP","KINGSTON HOSPITAL NHS FOUNDATION TRUST","RAX01","Fairfield General Hospital - RW601"]
[null,null,null,null,null,null,null,null,null,null,null,null,null,null,null,null,null,null,null,null,"QHM","RTD","THE NEWCASTLE UPON TYNE HOSPITALS NHS FOUNDATION TRUST","RTD02","The Royal Victoria Infirmary - RTD02",null,"RGR","LANCASHIRE TEACHING HOSPITALS NHS FOUNDATION TRUST",null,"RGR","LANCASHIRE TEACHING HOSPITALS NHS FOUNDATION TRUST","RAXXXX","Friarage Hospital Site - RTR45"]
[null,null,null,null,null,null,null,null,null,null,null,null,null,null,null,null,null,null,null,null,"QJ2","RFS","CHESTERFIELD ROYAL HOSPITAL NHS FOUNDATION TRUST","RFSDA","Chesterfield Royal Hospital - RFSDA",null,"RGT","LEEDS TEACHING HOSPITALS NHS TRUST",null,"RGT","LEEDS TEACHING HOSPITALS NHS TRUST","RBD01","Frimley Park Hospital - RDU01"]
[null,null,null,null,null,null,null,null,null,null,null,null,null,null,null,null,null,null,null,null,"QJ2","RTG","UNIVERSITY HOSPITALS OF DERBY AND BURTON NHS FOUNDATION TRUST","RTG02","Queen's Hospital, Burton Upon Trent - RTG02",null,"RH5","LEWISHAM AND GREENWICH NHS TRUST",null,"RH5","LEWISHAM AND GREENWICH NHS TRUST","RBK02","Furness General Hospital - RTXBU"]
[null,null,null,null,null,null,null,null,null,null,null,null,null,null,null,null,null,null,null,null,"QJ2","RTG","UNIVERSITY HOSPITALS OF DERBY AND BURTON NHS FOUNDATION TRUST","RTGFG","Royal Derby Hospital - RTGFG",null,"RH8","LIVERPOOL UNIVERSITY HOSPITALS NHS FOUNDATION TRUST",null,"RH8","LIVERPOOL UNIVERSITY HOSPITALS NHS FOUNDATION TRUST","RBL14","George Eliot Hospital - Acute Services - RLT01"]
[null,null,null,null,null,null,null,null,null,null,null,null,null,null,null,null,null,null,null,null,"QJ2","RTG","UNIVERSITY HOSPITALS OF DERBY AND BURTON NHS FOUNDATION TRUST","RTG54","Samuel Johnson - RTG54",null,"RHM","LIVERPOOL WOMEN'S NHS FOUNDATION TRUST",null,"RHM","LIVERPOOL WOMEN'S NHS FOUNDATION TRUST","RBN01","Gloucestershire Royal Hospital - RTE03"]
[null,null,null,null,null,null,null,null,null,null,null,null,null,null,null,null,null,null,null,null,"QJ2","RTG","UNIVERSITY HOSPITALS OF DERBY AND BURTON NHS FOUNDATION TRUST","RTG50","Sir Robert Peel - RTG50",null,"RHQ","LONDON NORTH WEST UNIVERSITY HEALTHCARE NHS TRUST",null,"RHQ","LONDON NORTH WEST UNIVERSITY HEALTHCARE NHS TRUST","RBS25","Good Hope Hospital - RRK98"]
[null,null,null,null,null,null,null,null,null,null,null,null,null,null,null,null,null,null,null,null,"QJG","RDE","EAST SUFFOLK AND NORTH ESSEX NHS FOUNDATION TRUST","RDEE4","Colchester General Hospital - RDEE4",null,"RHU","MAIDSTONE AND TUNBRIDGE WELLS NHS TRUST",null,"RHU","MAIDSTONE AND TUNBRIDGE WELLS NHS TRUST","RBT20","Grantham and District Hospital - RWDLP"]
[null,null,null,null,null,null,null,null,null,null,null,null,null,null,null,null,null,null,null,null,"QJG","RDE","EAST SUFFOLK AND NORTH ESSEX NHS FOUNDATION TRUST","RDE03","Ipswich Hospital - RDE03",null,"RHW","MANCHESTER UNIVERSITY NHS FOUNDATION TRUST",null,"RHW","MANCHESTER UNIVERSITY NHS FOUNDATION TRUST","RBTXXX","Halton Hospital - RWWHG"]
[null,null,null,null,null,null,null,null,null,null,null,null,null,null,null,null,null,null,null,null,"QJG","RGR","WEST SUFFOLK NHS FOUNDATION TRUST","RGR50","West Suffolk Hospital - RGR50",null,"RJ1","MEDWAY NHS FOUNDATION TRUST",null,"RJ1","MEDWAY NHS FOUNDATION TRUST","RBZ12","Harrogate District Hospital - RCD01"]
[null,null,null,null,null,null,null,null,null,null,null,null,null,null,null,null,null,null,null,null,"QJK","RBZ","NORTHERN DEVON HEALTHCARE NHS TRUST","RBZ12","North Devon District Hospital - RBZ12",null,"RJ2","MID AND SOUTH ESSEX NHS FOUNDATION TRUST",null,"RJ2","MID AND SOUTH ESSEX NHS FOUNDATION TRUST","RC971","Heartlands Hospital - RRK97"]
[null,null,null,null,null,null,null,null,null,null,null,null,null,null,null,null,null,null,null,null,"QJK","RH8","ROYAL DEVON AND EXETER NHS FOUNDATION TRUST","RH801","Royal Devon and Exeter Hospital (Wonford) - RH801",null,"RJ6","MID CHESHIRE HOSPITALS NHS FOUNDATION TRUST",null,"RJ6","MID CHESHIRE HOSPITALS NHS FOUNDATION TRUST","RC979","Hemel Hempstead Hospital - RWG08"]
[null,null,null,null,null,null,null,null,null,null,null,null,null,null,null,null,null,null,null,null,"QJK","RH8","ROYAL DEVON AND EXETER NHS FOUNDATION TRUST","RH8XXX","WiC_MIU - RH8XXX",null,"RJ7","MID YORKSHIRE HOSPITALS NHS TRUST",null,"RJ7","MID YORKSHIRE HOSPITALS NHS TRUST","RCB55","Hereford County Hospital - RLQ01"]
[null,null,null,null,null,null,null,null,null,null,null,null,null,null,null,null,null,null,null,null,"QJK","RA9","TORBAY AND SOUTH DEVON NHS FOUNDATION TRUST","RA901","Torbay Hospital - RA901",null,"RJC","MILTON KEYNES UNIVERSITY HOSPITAL NHS FOUNDATION TRUST",null,"RJC","MILTON KEYNES UNIVERSITY HOSPITAL NHS FOUNDATION TRUST","RCBCA","Hillingdon Hospital - RAS01"]
[null,null,null,null,null,null,null,null,null,null,null,null,null,null,null,null,null,null,null,null,"QJK","RK9","UNIVERSITY HOSPITALS PLYMOUTH NHS TRUST","RK950","Derriford Hospital - RK950",null,"RJE","MOORFIELDS EYE HOSPITAL NHS FOUNDATION TRUST",null,"RJE","MOORFIELDS EYE HOSPITAL NHS FOUNDATION TRUST","RCD01","Hinchingbrooke Hospital - RGN90"]
[null,null,null,null,null,null,null,null,null,null,null,null,null,null,null,null,null,null,null,null,"QJK","RK9","UNIVERSITY HOSPITALS PLYMOUTH NHS TRUST","RK9XXX","WiC_MIU - RK9XXX",null,"RJL","NORFOLK AND NORWICH UNIVERSITY HOSPITALS NHS FOUNDATION TRUST",null,"RJL","NORFOLK AND NORWICH UNIVERSITY HOSPITALS NHS FOUNDATION TRUST","RCD02","Homerton University Hospital - RQXM1"]
[null,null,null,null,null,null,null,null,null,null,null,null,null,null,null,null,null,null,null,null,"QJM","RWD","UNITED LINCOLNSHIRE HOSPITALS NHS TRUST","RWDLP","Grantham and District Hospital - RWDLP",null,"RJN","NORTH BRISTOL NHS TRUST",null,"RJN","NORTH BRISTOL NHS TRUST","RCDXXX","Horton General Hospital - RTH05"]
[null,null,null,null,null,null,null,null,null,null,null,null,null,null,null,null,null,null,null,null,"QJM","RWD","UNITED LINCOLNSHIRE HOSPITALS NHS TRUST","RWDDA","Lincoln County Hospital - RWDDA",null,"RJZ","NORTH CUMBRIA INTEGRATED CARE NHS FOUNDATION TRUST",null,"RJZ","NORTH CUMBRIA INTEGRATED CARE NHS FOUNDATION TRUST","RCF22","Hospital Of St Cross - RKB03"]
[null,null,null,null,null,null,null,null,null,null,null,null,null,null,null,null,null,null,null,null,"QJM","RWD","UNITED LINCOLNSHIRE HOSPITALS NHS TRUST","RWDLA","Pilgrim Hospital - RWDLA",null,"RK5","NORTH MIDDLESEX UNIVERSITY HOSPITAL NHS TRUST",null,"RK5","NORTH MIDDLESEX UNIVERSITY HOSPITAL NHS TRUST","RCUEF","Huddersfield Royal Infirmary - RWY01"]
[null,null,null,null,null,null,null,null,null,null,null,null,null,null,null,null,null,null,null,null,"QK1","RWE","UNIVERSITY HOSPITALS OF LEICESTER NHS TRUST","RWEAA","Leicester Royal Infirmary - RWEAA",null,"RK9","NORTH TEES AND HARTLEPOOL NHS FOUNDATION TRUST",null,"RK9","NORTH TEES AND HARTLEPOOL NHS FOUNDATION TRUST","RCX70","Hull Royal Infirmary - RWA01"]
[null,null,null,null,null,null,null,null,null,null,null,null,null,null,null,null,null,null,null,null,"QKK","RJ1","GUY'S AND ST THOMAS' NHS FOUNDATION TRUST","RJ122","St Thomas' Hospital - RJ122",null,"RKB","NORTH WEST ANGLIA NHS FOUNDATION TRUST",null,"RKB","NORTH WEST ANGLIA NHS FOUNDATION TRUST","RD130","Ipswich Hospital - RDE03"]
[null,null,null,null,null,null,null,null,null,null,null,null,null,null,null,null,null,null,null,null,"QKK","RJ1","GUY'S AND ST THOMAS' NHS FOUNDATION TRUST","RJ1XXX","WiC_MIU - RJ1XXX",null,"RKE","NORTHAMPTON GENERAL HOSPITAL NHS TRUST",null,"RKE","NORTHAMPTON GENERAL HOSPITAL NHS TRUST","RD1XXX","James Paget University Hospital - RGP75"]
[null,null,null,null,null,null,null,null,null,null,null,null,null,null,null,null,null,null,null,null,"QKK","RJZ","KING'S COLLEGE HOSPITAL NHS FOUNDATION TRUST","RJZ01","King's College Hospital (Denmark Hill) - RJZ01",null,"RL4","NORTHERN CARE ALLIANCE NHS FOUNDATION TRUST",null,"RL4","NORTHERN CARE ALLIANCE NHS FOUNDATION TRUST","RD816","John Radcliffe Hospital - RTH08"]
[null,null,null,null,null,null,null,null,null,null,null,null,null,null,null,null,null,null,null,null,"QKK","RJZ","KING'S COLLEGE HOSPITAL NHS FOUNDATION TRUST","RJZ30","Princess Royal University Hospital - RJZ30",null,"RLQ","NORTHERN DEVON HEALTHCARE NHS TRUST",null,"RLQ","NORTHERN DEVON HEALTHCARE NHS TRUST","RDE03","Kent and Canterbury Hospital - RVVKC"]
[null,null,null,null,null,null,null,null,null,null,null,null,null,null,null,null,null,null,null,null,"QKK","RJ2","LEWISHAM AND GREENWICH NHS TRUST","RJ231","Queen Elizabeth Hospital - RJ231",null,"RLT","NORTHERN LINCOLNSHIRE AND GOOLE NHS FOUNDATION TRUST",null,"RLT","NORTHERN LINCOLNSHIRE AND GOOLE NHS FOUNDATION TRUST","RDEE4","Kettering General Hospital - RNQ51"]
[null,null,null,null,null,null,null,null,null,null,null,null,null,null,null,null,null,null,null,null,"QKK","RJ2","LEWISHAM AND GREENWICH NHS TRUST","RJ224","University Hospital Lewisham - RJ224",null,"RM1","NORTHUMBRIA HEALTHCARE NHS FOUNDATION TRUST",null,"RM1","NORTHUMBRIA HEALTHCARE NHS FOUNDATION TRUST","RDU01","Kidderminster Hospital - RWP31"]
[null,null,null,null,null,null,null,null,null,null,null,null,null,null,null,null,null,null,null,null,"QKS","RN7","DARTFORD AND GRAVESHAM NHS TRUST","RN707","Darent Valley Hospital - RN707",null,"RM3","NOTTINGHAM UNIVERSITY HOSPITALS NHS TRUST",null,"RM3","NOTTINGHAM UNIVERSITY HOSPITALS NHS TRUST","RDU50","King Edward Vii Hospital - RHW03"]
[null,null,null,null,null,null,null,null,null,null,null,null,null,null,null,null,null,null,null,null,"QKS","RVV","EAST KENT HOSPITALS UNIVERSITY NHS FOUNDATION TRUST","RVV02","Buckland Hospital - RVV02",null,"RMC","OXFORD UNIVERSITY HOSPITALS NHS FOUNDATION TRUST",null,"RMC","OXFORD UNIVERSITY HOSPITALS NHS FOUNDATION TRUST","REF01","King George Hospital - RF4DG"]
[null,null,null,null,null,null,null,null,null,null,null,null,null,null,null,null,null,null,null,null,"QKS","RVV","EAST KENT HOSPITALS UNIVERSITY NHS FOUNDATION TRUST","RVVKC","Kent and Canterbury Hospital - RVVKC",null,"RMP","PENNINE ACUTE HOSPITALS NHS TRUST",null,"RMP","PENNINE ACUTE HOSPITALS NHS TRUST","REF12","King's College Hospital (Denmark Hill) - RJZ01"]
[null,null,null,null,null,null,null,null,null,null,null,null,null,null,null,null,null,null,null,null,"QKS","RVV","EAST KENT HOSPITALS UNIVERSITY NHS FOUNDATION TRUST","RVV09","Queen Elizabeth The Queen Mother Hospital - RVV09",null,"RN3","PORTSMOUTH HOSPITALS UNIVERSITY NATIONAL HEALTH SERVICE TRUST",null,"RN3","PORTSMOUTH HOSPITALS UNIVERSITY NATIONAL HEALTH SERVICE TRUST","REM21","King's Mill Hospital - RK5BC"]
[null,null,null,null,null,null,null,null,null,null,null,null,null,null,null,null,null,null,null,null,"QKS","RVV","EAST KENT HOSPITALS UNIVERSITY NHS FOUNDATION TRUST","RVV01","William Harvey Hospital (Ashford) - RVV01",null,"RN5","QUEEN VICTORIA HOSPITAL NHS FOUNDATION TRUST",null,"RN5","QUEEN VICTORIA HOSPITAL NHS FOUNDATION TRUST","REMRQ","Kingston Hospital - RAX01"]
[null,null,null,null,null,null,null,null,null,null,null,null,null,null,null,null,null,null,null,null,"QKS","RWF","MAIDSTONE AND TUNBRIDGE WELLS NHS TRUST","RWF03","Maidstone District General Hospital - RWF03",null,"RN7","ROYAL BERKSHIRE NHS FOUNDATION TRUST",null,"RN7","ROYAL BERKSHIRE NHS FOUNDATION TRUST","REP01","Leeds General Infirmary - RR801"]
[null,null,null,null,null,null,null,null,null,null,null,null,null,null,null,null,null,null,null,null,"QKS","RWF","MAIDSTONE AND TUNBRIDGE WELLS NHS TRUST","RWFTW","The Tunbridge Wells Hospital - RWFTW",null,"RNA","ROYAL CORNWALL HOSPITALS NHS TRUST",null,"RNA","ROYAL CORNWALL HOSPITALS NHS TRUST","RF4DG","Leicester Royal Infirmary - RWEAA"]
[null,null,null,null,null,null,null,null,null,null,null,null,null,null,null,null,null,null,null,null,"QKS","RWF","MAIDSTONE AND TUNBRIDGE WELLS NHS TRUST","RWFXXX","WiC_MIU - RWFXXX",null,"RNN","ROYAL DEVON AND EXETER NHS FOUNDATION TRUST",null,"RNN","ROYAL DEVON AND EXETER NHS FOUNDATION TRUST","RF4QH","Leighton Hospital - RBT20"]
[null,null,null,null,null,null,null,null,null,null,null,null,null,null,null,null,null,null,null,null,"QKS","RPA","MEDWAY NHS FOUNDATION TRUST","RPA02","Medway Maritime Hospital - RPA02",null,"RNQ","ROYAL FREE LONDON NHS FOUNDATION TRUST",null,"RNQ","ROYAL FREE LONDON NHS FOUNDATION TRUST","RFFAA","Lincoln County Hospital - RWDDA"]
[null,null,null,null,null,null,null,null,null,null,null,null,null,null,null,null,null,null,null,null,"QM7","RWH","EAST AND NORTH HERTFORDSHIRE NHS TRUST","RWH01","Lister Hospital - RWH01",null,"RNS","ROYAL SURREY COUNTY HOSPITAL NHS FOUNDATION TRUST",null,"RNS","ROYAL SURREY COUNTY HOSPITAL NHS FOUNDATION TRUST","RFRPA","Lister Hospital - RWH01"]
[null,null,null,null,null,null,null,null,null,null,null,null,null,null,null,null,null,null,null,null,"QM7","RWH","EAST AND NORTH HERTFORDSHIRE NHS TRUST","RWH20","Queen Elizabeth I I Hospital - RWH20",null,"RNZ","ROYAL UNITED HOSPITALS BATH NHS FOUNDATION TRUST",null,"RNZ","ROYAL UNITED HOSPITALS BATH NHS FOUNDATION TRUST","RFSDA","Liverpool Womens Hospital - REP01"]
[null,null,null,null,null,null,null,null,null,null,null,null,null,null,null,null,null,null,null,null,"QM7","RQW","THE PRINCESS ALEXANDRA HOSPITAL NHS TRUST","RQWG0","Princess Alexandra Hospital - RQWG0",null,"RP5","SALISBURY NHS FOUNDATION TRUST",null,"RP5","SALISBURY NHS FOUNDATION TRUST","RGN49","Luton and Dunstable Hospital - RC971"]
[null,null,null,null,null,null,null,null,null,null,null,null,null,null,null,null,null,null,null,null,"QM7","RWG","WEST HERTFORDSHIRE HOSPITALS NHS TRUST","RWG08","Hemel Hempstead Hospital - RWG08",null,"RP6","SANDWELL AND WEST BIRMINGHAM HOSPITALS NHS TRUST",null,"RP6","SANDWELL AND WEST BIRMINGHAM HOSPITALS NHS TRUST","RGN80","Macclesfield District General Hospital - RJN71"]
[null,null,null,null,null,null,null,null,null,null,null,null,null,null,null,null,null,null,null,null,"QM7","RWG","WEST HERTFORDSHIRE HOSPITALS NHS TRUST","RWG02","Watford General Hospital - RWG02",null,"RPA","SHEFFIELD CHILDREN'S NHS FOUNDATION TRUST",null,"RPA","SHEFFIELD CHILDREN'S NHS FOUNDATION TRUST","RGN90","Maidstone District General Hospital - RWF03"]
[null,null,null,null,null,null,null,null,null,null,null,null,null,null,null,null,null,null,null,null,"QMF","RF4","BARKING, HAVERING AND REDBRIDGE UNIVERSITY HOSPITALS NHS TRUST","RF4DG","King George Hospital - RF4DG",null,"RPC","SHEFFIELD TEACHING HOSPITALS NHS FOUNDATION TRUST",null,"RPC","SHEFFIELD TEACHING HOSPITALS NHS FOUNDATION TRUST","RGP75","Manchester Royal Eye Hospital - R0A04"]
[null,null,null,null,null,null,null,null,null,null,null,null,null,null,null,null,null,null,null,null,"QMF","RF4","BARKING, HAVERING AND REDBRIDGE UNIVERSITY HOSPITALS NHS TRUST","RF4QH","Queen's Hospital - RF4QH",null,"RQM","SHERWOOD FOREST HOSPITALS NHS FOUNDATION TRUST",null,"RQM","SHERWOOD FOREST HOSPITALS NHS FOUNDATION TRUST","RGR50","Manchester Royal Infirmary - R0A02"]
[null,null,null,null,null,null,null,null,null,null,null,null,null,null,null,null,null,null,null,null,"QMF","R1H","BARTS HEALTH NHS TRUST","R1HNH","Newham General Hospital - R1HNH",null,"RQW","SOMERSET NHS FOUNDATION TRUST",null,"RQW","SOMERSET NHS FOUNDATION TRUST","RGT01","Manor Hospital - RBK02"]
[null,null,null,null,null,null,null,null,null,null,null,null,null,null,null,null,null,null,null,null,"QMF","R1H","BARTS HEALTH NHS TRUST","R1HM0","St Bartholomew's Hospital - R1HM0",null,"RQX","SOUTH TEES HOSPITALS NHS FOUNDATION TRUST",null,"RQX","SOUTH TEES HOSPITALS NHS FOUNDATION TRUST","RH5A8","Medway Maritime Hospital - RPA02"]
[null,null,null,null,null,null,null,null,null,null,null,null,null,null,null,null,null,null,null,null,"QMF","R1H","BARTS HEALTH NHS TRUST","R1H12","The Royal London Hospital - R1H12",null,"RR7","SOUTH TYNESIDE AND SUNDERLAND NHS FOUNDATION TRUST",null,"RR7","SOUTH TYNESIDE AND SUNDERLAND NHS FOUNDATION TRUST","RH5XXX","Mid Essex Hospital - RAJ32"]
[null,null,null,null,null,null,null,null,null,null,null,null,null,null,null,null,null,null,null,null,"QMF","R1H","BARTS HEALTH NHS TRUST","R1HKH","Whipps Cross University Hospital - R1HKH",null,"RR8","SOUTH WARWICKSHIRE NHS FOUNDATION TRUST",null,"RR8","SOUTH WARWICKSHIRE NHS FOUNDATION TRUST","RH801","Milton Keynes Hospital - RD816"]
[null,null,null,null,null,null,null,null,null,null,null,null,null,null,null,null,null,null,null,null,"QMF","R1H","BARTS HEALTH NHS TRUST","R1HXXX","WiC_MIU - R1HXXX",null,"RRF","SOUTHPORT AND ORMSKIRK HOSPITAL NHS TRUST",null,"RRF","SOUTHPORT AND ORMSKIRK HOSPITAL NHS TRUST","RH8XXX","Montagu Hospital - RP5MM"]
[null,null,null,null,null,null,null,null,null,null,null,null,null,null,null,null,null,null,null,null,"QMF","RQX","HOMERTON UNIVERSITY HOSPITAL NHS FOUNDATION TRUST","RQXM1","Homerton University Hospital - RQXM1",null,"RRK","ST GEORGE'S UNIVERSITY HOSPITALS NHS FOUNDATION TRUST",null,"RRK","ST GEORGE'S UNIVERSITY HOSPITALS NHS FOUNDATION TRUST","RHM01","Moorfields Eye Hospital (City Road) - RP601"]
[null,null,null,null,null,null,null,null,null,null,null,null,null,null,null,null,null,null,null,null,"QMJ","RP6","MOORFIELDS EYE HOSPITAL NHS FOUNDATION TRUST","RP601","Moorfields Eye Hospital (City Road) - RP601",null,"RRV","ST HELENS AND KNOWSLEY TEACHING HOSPITALS NHS TRUST",null,"RRV","ST HELENS AND KNOWSLEY TEACHING HOSPITALS NHS TRUST","RHQHH","Mount Vernon Hospital Site - RAS02"]
[null,null,null,null,null,null,null,null,null,null,null,null,null,null,null,null,null,null,null,null,"QMJ","RAP","NORTH MIDDLESEX UNIVERSITY HOSPITAL NHS TRUST","RAPNM","North Middlesex Hospital - RAPNM",null,"RTD","STOCKPORT NHS FOUNDATION TRUST",null,"RTD","STOCKPORT NHS FOUNDATION TRUST","RHQNG","Musgrove Park Hospital - RH5A8"]
[null,null,null,null,null,null,null,null,null,null,null,null,null,null,null,null,null,null,null,null,"QMJ","RAL","ROYAL FREE LONDON NHS FOUNDATION TRUST","RAL26","Barnet Hospital - RAL26",null,"RTE","SURREY AND SUSSEX HEALTHCARE NHS TRUST",null,"RTE","SURREY AND SUSSEX HEALTHCARE NHS TRUST","RHQXXX","New Cross Hospital - RL403"]
[null,null,null,null,null,null,null,null,null,null,null,null,null,null,null,null,null,null,null,null,"QMJ","RAL","ROYAL FREE LONDON NHS FOUNDATION TRUST","RAL01","Royal Free Hospital - RAL01",null,"RTF","TAMESIDE AND GLOSSOP INTEGRATED CARE NHS FOUNDATION TRUST",null,"RTF","TAMESIDE AND GLOSSOP INTEGRATED CARE NHS FOUNDATION TRUST","RHU03","Newham General Hospital - R1HNH"]
[null,null,null,null,null,null,null,null,null,null,null,null,null,null,null,null,null,null,null,null,"QMJ","RAL","ROYAL FREE LONDON NHS FOUNDATION TRUST","RALXXX","WiC_MIU - RALXXX",null,"RTG","THE DUDLEY GROUP NHS FOUNDATION TRUST",null,"RTG","THE DUDLEY GROUP NHS FOUNDATION TRUST","RHUXXX","Norfolk and Norwich University Hospital - RM102"]
[null,null,null,null,null,null,null,null,null,null,null,null,null,null,null,null,null,null,null,null,"QMJ","RRV","UNIVERSITY COLLEGE LONDON HOSPITALS NHS FOUNDATION TRUST","RRV03","University College Hospital - RRV03",null,"RTH","THE HILLINGDON HOSPITALS NHS FOUNDATION TRUST",null,"RTH","THE HILLINGDON HOSPITALS NHS FOUNDATION TRUST","RHW01","North Devon District Hospital - RBZ12"]
[null,null,null,null,null,null,null,null,null,null,null,null,null,null,null,null,null,null,null,null,"QMJ","RKE","WHITTINGTON HEALTH NHS TRUST","RKEQ4","The Whittington Hospital - RKEQ4",null,"RTK","THE NEWCASTLE UPON TYNE HOSPITALS NHS FOUNDATION TRUST",null,"RTK","THE NEWCASTLE UPON TYNE HOSPITALS NHS FOUNDATION TRUST","RHW03","North Manchester General Hospital -R0A66"]
[null,null,null,null,null,null,null,null,null,null,null,null,null,null,null,null,null,null,null,null,"QMM","RGP","JAMES PAGET UNIVERSITY HOSPITALS NHS FOUNDATION TRUST","RGP75","James Paget University Hospital - RGP75",null,"RTP","THE PRINCESS ALEXANDRA HOSPITAL NHS TRUST",null,"RTP","THE PRINCESS ALEXANDRA HOSPITAL NHS TRUST","RJ122","North Middlesex Hospital - RAPNM"]
[null,null,null,null,null,null,null,null,null,null,null,null,null,null,null,null,null,null,null,null,"QMM","RM1","NORFOLK AND NORWICH UNIVERSITY HOSPITALS NHS FOUNDATION TRUST","RM102","Norfolk and Norwich University Hospital - RM102",null,"RTR","THE QUEEN ELIZABETH HOSPITAL, KING'S LYNN, NHS FOUNDATION TRUST",null,"RTR","THE QUEEN ELIZABETH HOSPITAL, KING'S LYNN, NHS FOUNDATION TRUST","RJ1XXX","Northampton General Hospital (Acute) - RNS01"]
[null,null,null,null,null,null,null,null,null,null,null,null,null,null,null,null,null,null,null,null,"QMM","RCX","THE QUEEN ELIZABETH HOSPITAL, KING'S LYNN, NHS FOUNDATION TRUST","RCX70","The Queen Elizabeth Hospital - RCX70",null,"RTX","THE ROTHERHAM NHS FOUNDATION TRUST",null,"RTX","THE ROTHERHAM NHS FOUNDATION TRUST","RJ224","Northern General Hospital - RHQNG"]
[null,null,null,null,null,null,null,null,null,null,null,null,null,null,null,null,null,null,null,null,"QNC","RJE","UNIVERSITY HOSPITALS OF NORTH MIDLANDS NHS TRUST","RJE09","County Hospital - RJE09",null,"RVJ","THE ROYAL WOLVERHAMPTON NHS TRUST",null,"RVJ","THE ROYAL WOLVERHAMPTON NHS TRUST","RJ231","Northwick Park Hospital - R1K01"]
[null,null,null,null,null,null,null,null,null,null,null,null,null,null,null,null,null,null,null,null,"QNC","RJE","UNIVERSITY HOSPITALS OF NORTH MIDLANDS NHS TRUST","RJE01","Royal Stoke University Hospital - RJE01",null,"RVR","THE SHREWSBURY AND TELFORD HOSPITAL NHS TRUST",null,"RVR","THE SHREWSBURY AND TELFORD HOSPITAL NHS TRUST","RJ611","Nottingham University Hospitals NHS Trust - Queen's Medical Centre Campus - RX1RA"]
[null,null,null,null,null,null,null,null,null,null,null,null,null,null,null,null,null,null,null,null,"QNC","RJE","UNIVERSITY HOSPITALS OF NORTH MIDLANDS NHS TRUST","RJEXXX","WiC_MIU - RJEXXX",null,"RVV","TORBAY AND SOUTH DEVON NHS FOUNDATION TRUST",null,"RVV","TORBAY AND SOUTH DEVON NHS FOUNDATION TRUST","RJ6XXX","Ormskirk and District General Hospital - RVY02"]
[null,null,null,null,null,null,null,null,null,null,null,null,null,null,null,null,null,null,null,null,"QNQ","RDU","FRIMLEY HEALTH NHS FOUNDATION TRUST","RDU01","Frimley Park Hospital - RDU01",null,"RVW","UNITED LINCOLNSHIRE HOSPITALS NHS TRUST",null,"RVW","UNITED LINCOLNSHIRE HOSPITALS NHS TRUST","RJ701","Peterborough City Hospital - RGN80"]
[null,null,null,null,null,null,null,null,null,null,null,null,null,null,null,null,null,null,null,null,"QNQ","RDU","FRIMLEY HEALTH NHS FOUNDATION TRUST","RDU50","Wexham Park Hospital - RDU50",null,"RVY","UNIVERSITY COLLEGE LONDON HOSPITALS NHS FOUNDATION TRUST",null,"RVY","UNIVERSITY COLLEGE LONDON HOSPITALS NHS FOUNDATION TRUST","RJC02","Pilgrim Hospital - RWDLA"]
[null,null,null,null,null,null,null,null,null,null,null,null,null,null,null,null,null,null,null,null,"QNX","RXC","EAST SUSSEX HEALTHCARE NHS TRUST","RXC01","Conquest Hospital - RXC01",null,"RW6","UNIVERSITY HOSPITAL SOUTHAMPTON NHS FOUNDATION TRUST",null,"RW6","UNIVERSITY HOSPITAL SOUTHAMPTON NHS FOUNDATION TRUST","RJE01","Pinderfields General Hospital - RXF05"]
[null,null,null,null,null,null,null,null,null,null,null,null,null,null,null,null,null,null,null,null,"QNX","RXC","EAST SUSSEX HEALTHCARE NHS TRUST","RXC02","Eastbourne District General Hospital - RXC02",null,"RWA","UNIVERSITY HOSPITALS BIRMINGHAM NHS FOUNDATION TRUST",null,"RWA","UNIVERSITY HOSPITALS BIRMINGHAM NHS FOUNDATION TRUST","RJE09","Pontefract General Infirmary - RXF03"]
[null,null,null,null,null,null,null,null,null,null,null,null,null,null,null,null,null,null,null,null,"QNX","RPC","QUEEN VICTORIA HOSPITAL NHS FOUNDATION TRUST","RPC","QUEEN VICTORIA HOSPITAL NHS FOUNDATION TRUST",null,"RWD","UNIVERSITY HOSPITALS BRISTOL AND WESTON NHS FOUNDATION TRUST",null,"RWD","UNIVERSITY HOSPITALS BRISTOL AND WESTON NHS FOUNDATION TRUST","RJEXXX","Poole Hospital - R0D01"]
[null,null,null,null,null,null,null,null,null,null,null,null,null,null,null,null,null,null,null,null,"QNX","RYR","UNIVERSITY HOSPITALS SUSSEX NHS FOUNDATION TRUST","N6J7V","Princess Royal Hospital - N6J7V",null,"RWE","UNIVERSITY HOSPITALS COVENTRY AND WARWICKSHIRE NHS TRUST",null,"RWE","UNIVERSITY HOSPITALS COVENTRY AND WARWICKSHIRE NHS TRUST","RJL30","Princess Alexandra Hospital - RQWG0"]
[null,null,null,null,null,null,null,null,null,null,null,null,null,null,null,null,null,null,null,null,"QNX","RYR","UNIVERSITY HOSPITALS SUSSEX NHS FOUNDATION TRUST","E0A3H","Royal Sussex County Hospital - E0A3H",null,"RWF","UNIVERSITY HOSPITALS DORSET NHS FOUNDATION TRUST",null,"RWF","UNIVERSITY HOSPITALS DORSET NHS FOUNDATION TRUST","RJL32","Princess Royal Hospital - N6J7V"]
[null,null,null,null,null,null,null,null,null,null,null,null,null,null,null,null,null,null,null,null,"QNX","RYR","UNIVERSITY HOSPITALS SUSSEX NHS FOUNDATION TRUST","RYR16","St Richard's Hospital - RYR16",null,"RWG","UNIVERSITY HOSPITALS OF DERBY AND BURTON NHS FOUNDATION TRUST",null,"RWG","UNIVERSITY HOSPITALS OF DERBY AND BURTON NHS FOUNDATION TRUST","RJN71","Princess Royal University Hospital - RJZ30"]
[null,null,null,null,null,null,null,null,null,null,null,null,null,null,null,null,null,null,null,null,"QNX","RYR","UNIVERSITY HOSPITALS SUSSEX NHS FOUNDATION TRUST","X5M8P","Sussex Eye Hospital - X5M8P",null,"RWH","UNIVERSITY HOSPITALS OF LEICESTER NHS TRUST",null,"RWH","UNIVERSITY HOSPITALS OF LEICESTER NHS TRUST","RJZ01","Queen Alexandra Hospital - RHU03"]
[null,null,null,null,null,null,null,null,null,null,null,null,null,null,null,null,null,null,null,null,"QNX","RYR","UNIVERSITY HOSPITALS SUSSEX NHS FOUNDATION TRUST","G0W1C","The Royal Alexandra Children's Hospital - G0W1C",null,"RWJ","UNIVERSITY HOSPITALS OF MORECAMBE BAY NHS FOUNDATION TRUST",null,"RWJ","UNIVERSITY HOSPITALS OF MORECAMBE BAY NHS FOUNDATION TRUST","RJZ30","Queen Elizabeth Hospital - RJ231"]
[null,null,null,null,null,null,null,null,null,null,null,null,null,null,null,null,null,null,null,null,"QNX","RYR","UNIVERSITY HOSPITALS SUSSEX NHS FOUNDATION TRUST","RYR18","Worthing Hospital - RYR18",null,"RWP","UNIVERSITY HOSPITALS OF NORTH MIDLANDS NHS TRUST",null,"RWP","UNIVERSITY HOSPITALS OF NORTH MIDLANDS NHS TRUST","RK5BC","Queen Elizabeth Hospital - RR7EN"]
[null,null,null,null,null,null,null,null,null,null,null,null,null,null,null,null,null,null,null,null,"QOC","RXW","THE SHREWSBURY AND TELFORD HOSPITAL NHS TRUST","RXWAS","Royal Shrewsbury Hospital - RXWAS",null,"RWW","UNIVERSITY HOSPITALS PLYMOUTH NHS TRUST",null,"RWW","UNIVERSITY HOSPITALS PLYMOUTH NHS TRUST","RK5XXX","Queen Elizabeth Hospital Birmingham - RRK15"]
[null,null,null,null,null,null,null,null,null,null,null,null,null,null,null,null,null,null,null,null,"QOC","RXW","THE SHREWSBURY AND TELFORD HOSPITAL NHS TRUST","RXWAT","The Princess Royal Hospital - RXWAT",null,"RWY","UNIVERSITY HOSPITALS SUSSEX NHS FOUNDATION TRUST",null,"RWY","UNIVERSITY HOSPITALS SUSSEX NHS FOUNDATION TRUST","RK950","Queen Elizabeth I I Hospital - RWH20"]
[null,null,null,null,null,null,null,null,null,null,null,null,null,null,null,null,null,null,null,null,"QOP","RMC","BOLTON NHS FOUNDATION TRUST","RMC01","Royal Bolton Hospital - RMC01",null,"RX1","WALSALL HEALTHCARE NHS TRUST",null,"RX1","WALSALL HEALTHCARE NHS TRUST","RK9XXX","Queen Elizabeth The Queen Mother Hospital - RVV09"]
[null,null,null,null,null,null,null,null,null,null,null,null,null,null,null,null,null,null,null,null,"QOP","R0A","MANCHESTER UNIVERSITY NHS FOUNDATION TRUST","R0A04","Manchester Royal Eye Hospital - R0A04",null,"RXC","WARRINGTON AND HALTON TEACHING HOSPITALS NHS FOUNDATION TRUST",null,"RXC","WARRINGTON AND HALTON TEACHING HOSPITALS NHS FOUNDATION TRUST","RKB01","QUEEN VICTORIA HOSPITAL NHS FOUNDATION TRUST"]
[null,null,null,null,null,null,null,null,null,null,null,null,null,null,null,null,null,null,null,null,"QOP","R0A","MANCHESTER UNIVERSITY NHS FOUNDATION TRUST","R0A02","Manchester Royal Infirmary - R0A02",null,"RXF","WEST HERTFORDSHIRE HOSPITALS NHS TRUST",null,"RXF","WEST HERTFORDSHIRE HOSPITALS NHS TRUST","RKB03","Queen's Hospital - RF4QH"]
[null,null,null,null,null,null,null,null,null,null,null,null,null,null,null,null,null,null,null,null,"QOP","R0A","MANCHESTER UNIVERSITY NHS FOUNDATION TRUST","R0A66","North Manchester General Hospital -R0A66",null,"RXK","WEST SUFFOLK NHS FOUNDATION TRUST",null,"RXK","WEST SUFFOLK NHS FOUNDATION TRUST","RKBXXX","Queen's Hospital, Burton Upon Trent - RTG02"]
[null,null,null,null,null,null,null,null,null,null,null,null,null,null,null,null,null,null,null,null,"QOP","R0A","MANCHESTER UNIVERSITY NHS FOUNDATION TRUST","R0A03","Royal Manchester Children's Hospital - R0A03",null,"RXL","WHITTINGTON HEALTH NHS TRUST",null,"RXL","WHITTINGTON HEALTH NHS TRUST","RKEQ4","Ripon and District Community Hospital - RCD02"]
[null,null,null,null,null,null,null,null,null,null,null,null,null,null,null,null,null,null,null,null,"QOP","R0A","MANCHESTER UNIVERSITY NHS FOUNDATION TRUST","R0A05","St Mary's Hospital - R0A05",null,"RXN","WIRRAL UNIVERSITY TEACHING HOSPITAL NHS FOUNDATION TRUST",null,"RXN","WIRRAL UNIVERSITY TEACHING HOSPITAL NHS FOUNDATION TRUST","RL402","Rochdale Infirmary - RW604"]
[null,null,null,null,null,null,null,null,null,null,null,null,null,null,null,null,null,null,null,null,"QOP","R0A","MANCHESTER UNIVERSITY NHS FOUNDATION TRUST","R0A09","Trafford General Hospital - R0A09",null,"RXQ","WORCESTERSHIRE ACUTE HOSPITALS NHS TRUST",null,"RXQ","WORCESTERSHIRE ACUTE HOSPITALS NHS TRUST","RL403","Rotherham District General Hospital - RFRPA"]
[null,null,null,null,null,null,null,null,null,null,null,null,null,null,null,null,null,null,null,null,"QOP","R0A","MANCHESTER UNIVERSITY NHS FOUNDATION TRUST","R0A07","Wythenshawe Hospital - R0A07",null,"RXR","WRIGHTINGTON, WIGAN AND LEIGH NHS FOUNDATION TRUST",null,"RXR","WRIGHTINGTON, WIGAN AND LEIGH NHS FOUNDATION TRUST","RLQ01","Royal Albert Edward Infirmary - RRF02"]
[null,null,null,null,null,null,null,null,null,null,null,null,null,null,null,null,null,null,null,null,"QOP","RM3","NORTHERN CARE ALLIANCE NHS FOUNDATION TRUST","RM301","Salford Royal - RM301",null,"RXW","WYE VALLEY NHS TRUST",null,"RXW","WYE VALLEY NHS TRUST","RLT01","Royal Berkshire Hospital - RHW01"]
[null,null,null,null,null,null,null,null,null,null,null,null,null,null,null,null,null,null,null,null,"QOP","RW6","PENNINE ACUTE HOSPITALS NHS TRUST","RW601","Fairfield General Hospital - RW601",null,"RYJ","YEOVIL DISTRICT HOSPITAL NHS FOUNDATION TRUST",null,"RYJ","YEOVIL DISTRICT HOSPITAL NHS FOUNDATION TRUST","RM102","Royal Blackburn Hospital - RXR20"]
[null,null,null,null,null,null,null,null,null,null,null,null,null,null,null,null,null,null,null,null,"QOP","RW6","PENNINE ACUTE HOSPITALS NHS TRUST","RW604","Rochdale Infirmary - RW604",null,"RYR","YORK AND SCARBOROUGH TEACHING HOSPITALS NHS FOUNDATION TRUST",null,"RYR","YORK AND SCARBOROUGH TEACHING HOSPITALS NHS FOUNDATION TRUST","RM301","Royal Bolton Hospital - RMC01"]
[null,null,null,null,null,null,null,null,null,null,null,null,null,null,null,null,null,null,null,null,"QOP","RW6","PENNINE ACUTE HOSPITALS NHS TRUST","RW603","Royal Oldham Hospital - RW603",null,null,null,null,null,null,"RMC01","Royal Bourenmouth Hospital - R0D02"]
[null,null,null,null,null,null,null,null,null,null,null,null,null,null,null,null,null,null,null,null,"QOP","RWJ","STOCKPORT NHS FOUNDATION TRUST","RWJ09","Stepping Hill Hospital - RWJ09",null,null,null,null,null,null,"RMP01","Royal Cornwall Hospital (Treliske) - REF12"]
[null,null,null,null,null,null,null,null,null,null,null,null,null,null,null,null,null,null,null,null,"QOP","RMP","TAMESIDE AND GLOSSOP INTEGRATED CARE NHS FOUNDATION TRUST","RMP01","Tameside General Hospital - RMP01",null,null,null,null,null,null,"RN325","Royal Derby Hospital - RTGFG"]
[null,null,null,null,null,null,null,null,null,null,null,null,null,null,null,null,null,null,null,null,"QOP","RRF","WRIGHTINGTON, WIGAN AND LEIGH NHS FOUNDATION TRUST","RRF02","Royal Albert Edward Infirmary - RRF02",null,null,null,null,null,null,"RN3TC","Royal Devon and Exeter Hospital (Wonford) - RH801"]
[null,null,null,null,null,null,null,null,null,null,null,null,null,null,null,null,null,null,null,null,"QOQ","RCD","HARROGATE AND DISTRICT NHS FOUNDATION TRUST","RCD01","Harrogate District Hospital - RCD01",null,null,null,null,null,null,"RN506","Royal Free Hospital - RAL01"]
[null,null,null,null,null,null,null,null,null,null,null,null,null,null,null,null,null,null,null,null,"QOQ","RCD","HARROGATE AND DISTRICT NHS FOUNDATION TRUST","RCD02","Ripon and District Community Hospital - RCD02",null,null,null,null,null,null,"RN541","Royal Hallamshire Hospital - RHQHH"]
[null,null,null,null,null,null,null,null,null,null,null,null,null,null,null,null,null,null,null,null,"QOQ","RCD","HARROGATE AND DISTRICT NHS FOUNDATION TRUST","RCDXXX","WiC_MIU - RCDXXX",null,null,null,null,null,null,"RN542","Royal Hampshire County Hospital - RN541"]
[null,null,null,null,null,null,null,null,null,null,null,null,null,null,null,null,null,null,null,null,"QOQ","RWA","HULL UNIVERSITY TEACHING HOSPITALS NHS TRUST","RWA01","Hull Royal Infirmary - RWA01",null,null,null,null,null,null,"RN707","Royal Lancaster Infirmary - RTX02"]
[null,null,null,null,null,null,null,null,null,null,null,null,null,null,null,null,null,null,null,null,"QOQ","RJL","NORTHERN LINCOLNSHIRE AND GOOLE NHS FOUNDATION TRUST","RJL30","Diana, Princess Of Wales Hospital - RJL30",null,null,null,null,null,null,"RNA01","Royal Liverpool University Hospital - REMRQ"]
[null,null,null,null,null,null,null,null,null,null,null,null,null,null,null,null,null,null,null,null,"QOQ","RJL","NORTHERN LINCOLNSHIRE AND GOOLE NHS FOUNDATION TRUST","RJL32","Scunthorpe General Hospital - RJL32",null,null,null,null,null,null,"RNN62","Royal Manchester Children's Hospital - R0A03"]
[null,null,null,null,null,null,null,null,null,null,null,null,null,null,null,null,null,null,null,null,"QOQ","RCB","YORK AND SCARBOROUGH TEACHING HOSPITALS NHS FOUNDATION TRUST","RCBCA","Scarborough General Hospital - RCBCA",null,null,null,null,null,null,"RNNBX","Royal Oldham Hospital - RW603"]
[null,null,null,null,null,null,null,null,null,null,null,null,null,null,null,null,null,null,null,null,"QOQ","RCB","YORK AND SCARBOROUGH TEACHING HOSPITALS NHS FOUNDATION TRUST","RCB55","York Hospital - RCB55",null,null,null,null,null,null,"RNQ51","Royal Preston Hospital - RXN02"]
[null,null,null,null,null,null,null,null,null,null,null,null,null,null,null,null,null,null,null,null,"QOX","RN3","GREAT WESTERN HOSPITALS NHS FOUNDATION TRUST","RN3TC","The Brunel NHS Treatment Centre - RN3TC",null,null,null,null,null,null,"RNS01","Royal Shrewsbury Hospital - RXWAS"]
[null,null,null,null,null,null,null,null,null,null,null,null,null,null,null,null,null,null,null,null,"QOX","RN3","GREAT WESTERN HOSPITALS NHS FOUNDATION TRUST","RN325","The Great Western Hospital - RN325",null,null,null,null,null,null,"RNZ02","Royal Stoke University Hospital - RJE01"]
[null,null,null,null,null,null,null,null,null,null,null,null,null,null,null,null,null,null,null,null,"QOX","RD1","ROYAL UNITED HOSPITALS BATH NHS FOUNDATION TRUST","RD130","Royal United Hospital - RD130",null,null,null,null,null,null,"RP5BA","Royal Surrey County Hospital - RA201"]
[null,null,null,null,null,null,null,null,null,null,null,null,null,null,null,null,null,null,null,null,"QOX","RD1","ROYAL UNITED HOSPITALS BATH NHS FOUNDATION TRUST","RD1XXX","WiC_MIU - RD1XXX",null,null,null,null,null,null,"RP5DR","Royal Sussex County Hospital - E0A3H"]
[null,null,null,null,null,null,null,null,null,null,null,null,null,null,null,null,null,null,null,null,"QOX","RNZ","SALISBURY NHS FOUNDATION TRUST","RNZ02","Salisbury District Hospital - RNZ02",null,null,null,null,null,null,"RP5MM","Royal United Hospital - RD130"]
[null,null,null,null,null,null,null,null,null,null,null,null,null,null,null,null,null,null,null,null,"QPM","RNQ","KETTERING GENERAL HOSPITAL NHS FOUNDATION TRUST","RNQ51","Kettering General Hospital - RNQ51",null,null,null,null,null,null,"RP601","Russells Hall Hospital - RNA01"]
[null,null,null,null,null,null,null,null,null,null,null,null,null,null,null,null,null,null,null,null,"QPM","RNS","NORTHAMPTON GENERAL HOSPITAL NHS TRUST","RNS01","Northampton General Hospital (Acute) - RNS01",null,null,null,null,null,null,"RPA02","Salford Royal - RM301"]
[null,null,null,null,null,null,null,null,null,null,null,null,null,null,null,null,null,null,null,null,"QR1","RTE","GLOUCESTERSHIRE HOSPITALS NHS FOUNDATION TRUST","RTE01","Cheltenham General Hospital - RTE01",null,null,null,null,null,null,"RPC","Salisbury District Hospital - RNZ02"]
[null,null,null,null,null,null,null,null,null,null,null,null,null,null,null,null,null,null,null,null,"QR1","RTE","GLOUCESTERSHIRE HOSPITALS NHS FOUNDATION TRUST","RTE03","Gloucestershire Royal Hospital - RTE03",null,null,null,null,null,null,"RQM01","Samuel Johnson - RTG54"]
[null,null,null,null,null,null,null,null,null,null,null,null,null,null,null,null,null,null,null,null,"QRL","RN5","HAMPSHIRE HOSPITALS NHS FOUNDATION TRUST","RN542","Andover War Memorial Hospital - RN542",null,null,null,null,null,null,"RQM91","Sandwell General Hospital - RXK01"]
[null,null,null,null,null,null,null,null,null,null,null,null,null,null,null,null,null,null,null,null,"QRL","RN5","HAMPSHIRE HOSPITALS NHS FOUNDATION TRUST","RN506","Basingstoke and North Hampshire Hospital - RN506",null,null,null,null,null,null,"RQMXXX","Scarborough General Hospital - RCBCA"]
[null,null,null,null,null,null,null,null,null,null,null,null,null,null,null,null,null,null,null,null,"QRL","RN5","HAMPSHIRE HOSPITALS NHS FOUNDATION TRUST","RN541","Royal Hampshire County Hospital - RN541",null,null,null,null,null,null,"RQWG0","Scunthorpe General Hospital - RJL32"]
[null,null,null,null,null,null,null,null,null,null,null,null,null,null,null,null,null,null,null,null,"QRL","R1F","ISLE OF WIGHT NHS TRUST","R1F01","St Mary's Hospital - R1F01",null,null,null,null,null,null,"RQXM1","Sheffield Children's Hospital - RCUEF"]
[null,null,null,null,null,null,null,null,null,null,null,null,null,null,null,null,null,null,null,null,"QRL","RHU","PORTSMOUTH HOSPITALS UNIVERSITY NATIONAL HEALTH SERVICE TRUST","RHU03","Queen Alexandra Hospital - RHU03",null,null,null,null,null,null,"RR7EN","Sir Robert Peel - RTG50"]
[null,null,null,null,null,null,null,null,null,null,null,null,null,null,null,null,null,null,null,null,"QRL","RHU","PORTSMOUTH HOSPITALS UNIVERSITY NATIONAL HEALTH SERVICE TRUST","RHUXXX","WiC_MIU - RHUXXX",null,null,null,null,null,null,"RR7XXX","South Tyneside District Hospital - R0B0Q"]
[null,null,null,null,null,null,null,null,null,null,null,null,null,null,null,null,null,null,null,null,"QRL","RHM","UNIVERSITY HOSPITAL SOUTHAMPTON NHS FOUNDATION TRUST","RHM01","Southampton General Hospital - RHM01",null,null,null,null,null,null,"RR801","Southampton General Hospital - RHM01"]
[null,null,null,null,null,null,null,null,null,null,null,null,null,null,null,null,null,null,null,null,"QRV","RQM","CHELSEA AND WESTMINSTER HOSPITAL NHS FOUNDATION TRUST","RQM01","Chelsea and Westminster Hospital - RQM01",null,null,null,null,null,null,"RR813","Southend Hospital - RAJ01"]
[null,null,null,null,null,null,null,null,null,null,null,null,null,null,null,null,null,null,null,null,"QRV","RQM","CHELSEA AND WESTMINSTER HOSPITAL NHS FOUNDATION TRUST","RQM91","West Middlesex University Hospital - RQM91",null,null,null,null,null,null,"RRF02","Southmead Hospital - RVJ01"]
[null,null,null,null,null,null,null,null,null,null,null,null,null,null,null,null,null,null,null,null,"QRV","RQM","CHELSEA AND WESTMINSTER HOSPITAL NHS FOUNDATION TRUST","RQMXXX","WiC_MIU - RQMXXX",null,null,null,null,null,null,"RRK15","Southport and Formby District General Hospital - RVY01"]
[null,null,null,null,null,null,null,null,null,null,null,null,null,null,null,null,null,null,null,null,"QRV","RYJ","IMPERIAL COLLEGE HEALTHCARE NHS TRUST","RYJ02","Charing Cross Hospital - RYJ02",null,null,null,null,null,null,"RRK97","St Bartholomew's Hospital - R1HM0"]
[null,null,null,null,null,null,null,null,null,null,null,null,null,null,null,null,null,null,null,null,"QRV","RYJ","IMPERIAL COLLEGE HEALTHCARE NHS TRUST","RYJ01","St Mary's Hospital (HQ) - RYJ01",null,null,null,null,null,null,"RRK98","St George's Hospital (Tooting) - RJ701"]
[null,null,null,null,null,null,null,null,null,null,null,null,null,null,null,null,null,null,null,null,"QRV","RYJ","IMPERIAL COLLEGE HEALTHCARE NHS TRUST","RYJ07","Western Eye Hospital - RYJ07",null,null,null,null,null,null,"RRV03","St Helier Hospital - RVR05"]
[null,null,null,null,null,null,null,null,null,null,null,null,null,null,null,null,null,null,null,null,"QRV","RYJ","IMPERIAL COLLEGE HEALTHCARE NHS TRUST","RYJXXX","WiC_MIU - RYJXXX",null,null,null,null,null,null,"RTD02","St James's University Hospital - RR813"]
[null,null,null,null,null,null,null,null,null,null,null,null,null,null,null,null,null,null,null,null,"QRV","R1K","LONDON NORTH WEST UNIVERSITY HEALTHCARE NHS TRUST","R1K04","Ealing Hospital - R1K04",null,null,null,null,null,null,"RTE01","St Mary's Hospital - R0A05"]
[null,null,null,null,null,null,null,null,null,null,null,null,null,null,null,null,null,null,null,null,"QRV","R1K","LONDON NORTH WEST UNIVERSITY HEALTHCARE NHS TRUST","R1K01","Northwick Park Hospital - R1K01",null,null,null,null,null,null,"RTE03","St Mary's Hospital - R1F01"]
[null,null,null,null,null,null,null,null,null,null,null,null,null,null,null,null,null,null,null,null,"QRV","RAS","THE HILLINGDON HOSPITALS NHS FOUNDATION TRUST","RAS01","Hillingdon Hospital - RAS01",null,null,null,null,null,null,"RTF86","St Mary's Hospital (HQ) - RYJ01"]
[null,null,null,null,null,null,null,null,null,null,null,null,null,null,null,null,null,null,null,null,"QRV","RAS","THE HILLINGDON HOSPITALS NHS FOUNDATION TRUST","RAS02","Mount Vernon Hospital Site - RAS02",null,null,null,null,null,null,"RTFXXX","St Peter's Hospital - RTK01"]
[null,null,null,null,null,null,null,null,null,null,null,null,null,null,null,null,null,null,null,null,"QSL","RH5","SOMERSET NHS FOUNDATION TRUST","RH5A8","Musgrove Park Hospital - RH5A8",null,null,null,null,null,null,"RTG02","St Richard's Hospital - RYR16"]
[null,null,null,null,null,null,null,null,null,null,null,null,null,null,null,null,null,null,null,null,"QSL","RH5","SOMERSET NHS FOUNDATION TRUST","RH5XXX","Wic MIU - RH5XXX",null,null,null,null,null,null,"RTG50","St Thomas' Hospital - RJ122"]
[null,null,null,null,null,null,null,null,null,null,null,null,null,null,null,null,null,null,null,null,"QSL","RA4","YEOVIL DISTRICT HOSPITAL NHS FOUNDATION TRUST","RA430","Yeovil District Hospital - RA430",null,null,null,null,null,null,"RTG54","Stamford and Rutland Hospital - RGN49"]
[null,null,null,null,null,null,null,null,null,null,null,null,null,null,null,null,null,null,null,null,"QT1","RX1","NOTTINGHAM UNIVERSITY HOSPITALS NHS TRUST","RX1RA","Nottingham University Hospitals NHS Trust - Queen's Medical Centre Campus - RX1RA",null,null,null,null,null,null,"RTGFG","Stepping Hill Hospital - RWJ09"]
[null,null,null,null,null,null,null,null,null,null,null,null,null,null,null,null,null,null,null,null,"QT1","RK5","SHERWOOD FOREST HOSPITALS NHS FOUNDATION TRUST","RK5BC","King's Mill Hospital - RK5BC",null,null,null,null,null,null,"RTH05","Stoke Mandeville Hospital - RXQ02"]
[null,null,null,null,null,null,null,null,null,null,null,null,null,null,null,null,null,null,null,null,"QT1","RK5","SHERWOOD FOREST HOSPITALS NHS FOUNDATION TRUST","RK5XXX","WiC_MIU - RK5XXX",null,null,null,null,null,null,"RTH08","Sunderland Eye Infirmary – R0B0X"]
[null,null,null,null,null,null,null,null,null,null,null,null,null,null,null,null,null,null,null,null,"QT6","REF","ROYAL CORNWALL HOSPITALS NHS TRUST","REF12","Royal Cornwall Hospital (Treliske) - REF12",null,null,null,null,null,null,"RTK01","Sunderland Royal Hospital – R0B01"]
[null,null,null,null,null,null,null,null,null,null,null,null,null,null,null,null,null,null,null,null,"QT6","REF","ROYAL CORNWALL HOSPITALS NHS TRUST","REF01","West Cornwall Hospital (Penzance) - REF01",null,null,null,null,null,null,"RTP04","Sussex Eye Hospital - X5M8P"]
[null,null,null,null,null,null,null,null,null,null,null,null,null,null,null,null,null,null,null,null,"QU9","RXQ","BUCKINGHAMSHIRE HEALTHCARE NHS TRUST","RXQ02","Stoke Mandeville Hospital - RXQ02",null,null,null,null,null,null,"RTR45","Tameside General Hospital - RMP01"]
[null,null,null,null,null,null,null,null,null,null,null,null,null,null,null,null,null,null,null,null,"QU9","RTH","OXFORD UNIVERSITY HOSPITALS NHS FOUNDATION TRUST","RTH05","Horton General Hospital - RTH05",null,null,null,null,null,null,"RTRAT","The Brunel NHS Treatment Centre - RN3TC"]
[null,null,null,null,null,null,null,null,null,null,null,null,null,null,null,null,null,null,null,null,"QU9","RTH","OXFORD UNIVERSITY HOSPITALS NHS FOUNDATION TRUST","RTH08","John Radcliffe Hospital - RTH08",null,null,null,null,null,null,"RTRXXX","The Great Western Hospital - RN325"]
[null,null,null,null,null,null,null,null,null,null,null,null,null,null,null,null,null,null,null,null,"QU9","RHW","ROYAL BERKSHIRE NHS FOUNDATION TRUST","RHW03","King Edward Vii Hospital - RHW03",null,null,null,null,null,null,"RTX02","The James Cook University Hospital - RTRAT"]
[null,null,null,null,null,null,null,null,null,null,null,null,null,null,null,null,null,null,null,null,"QU9","RHW","ROYAL BERKSHIRE NHS FOUNDATION TRUST","RHW01","Royal Berkshire Hospital - RHW01",null,null,null,null,null,null,"RTXBU","The Northumbria - RTF86"]
[null,null,null,null,null,null,null,null,null,null,null,null,null,null,null,null,null,null,null,null,"QUA","RXK","SANDWELL AND WEST BIRMINGHAM HOSPITALS NHS TRUST","RXK03","Birmingham Midland Eye Centre (Bmec) - RXK03",null,null,null,null,null,null,"RTXBW","The Phoenix Health Centre - RL402"]
[null,null,null,null,null,null,null,null,null,null,null,null,null,null,null,null,null,null,null,null,"QUA","RXK","SANDWELL AND WEST BIRMINGHAM HOSPITALS NHS TRUST","RXK02","City Hospital - RXK02",null,null,null,null,null,null,"RVJ01","The Princess Royal Hospital - RXWAT"]
[null,null,null,null,null,null,null,null,null,null,null,null,null,null,null,null,null,null,null,null,"QUA","RXK","SANDWELL AND WEST BIRMINGHAM HOSPITALS NHS TRUST","RXK01","Sandwell General Hospital - RXK01",null,null,null,null,null,null,"RVR05","The Queen Elizabeth Hospital - RCX70"]
[null,null,null,null,null,null,null,null,null,null,null,null,null,null,null,null,null,null,null,null,"QUA","RNA","THE DUDLEY GROUP NHS FOUNDATION TRUST","RNA01","Russells Hall Hospital - RNA01",null,null,null,null,null,null,"RVR50","The Royal Alexandra Children's Hospital - G0W1C"]
[null,null,null,null,null,null,null,null,null,null,null,null,null,null,null,null,null,null,null,null,"QUA","RL4","THE ROYAL WOLVERHAMPTON NHS TRUST","RL403","New Cross Hospital - RL403",null,null,null,null,null,null,"RVV01","The Royal London Hospital - R1H12"]
[null,null,null,null,null,null,null,null,null,null,null,null,null,null,null,null,null,null,null,null,"QUA","RL4","THE ROYAL WOLVERHAMPTON NHS TRUST","RL402","The Phoenix Health Centre - RL402",null,null,null,null,null,null,"RVV02","The Royal Victoria Infirmary - RTD02"]
[null,null,null,null,null,null,null,null,null,null,null,null,null,null,null,null,null,null,null,null,"QUA","RBK","WALSALL HEALTHCARE NHS TRUST","RBK02","Manor Hospital - RBK02",null,null,null,null,null,null,"RVV09","The Tunbridge Wells Hospital - RWFTW"]
[null,null,null,null,null,null,null,null,null,null,null,null,null,null,null,null,null,null,null,null,"QUE","RGT","CAMBRIDGE UNIVERSITY HOSPITALS NHS FOUNDATION TRUST","RGT01","Addenbrooke's Hospital - RGT01",null,null,null,null,null,null,"RVVKC","The Whittington Hospital - RKEQ4"]
[null,null,null,null,null,null,null,null,null,null,null,null,null,null,null,null,null,null,null,null,"QUE","RGN","NORTH WEST ANGLIA NHS FOUNDATION TRUST","RGN90","Hinchingbrooke Hospital - RGN90",null,null,null,null,null,null,"RVWAE","Torbay Hospital - RA901"]
[null,null,null,null,null,null,null,null,null,null,null,null,null,null,null,null,null,null,null,null,"QUE","RGN","NORTH WEST ANGLIA NHS FOUNDATION TRUST","RGN80","Peterborough City Hospital - RGN80",null,null,null,null,null,null,"RVY01","Trafford General Hospital - R0A09"]
[null,null,null,null,null,null,null,null,null,null,null,null,null,null,null,null,null,null,null,null,"QUE","RGN","NORTH WEST ANGLIA NHS FOUNDATION TRUST","RGN49","Stamford and Rutland Hospital - RGN49",null,null,null,null,null,null,"RVY02","University College Hospital - RRV03"]
[null,null,null,null,null,null,null,null,null,null,null,null,null,null,null,null,null,null,null,null,"QUY","RVJ","NORTH BRISTOL NHS TRUST","RVJ01","Southmead Hospital - RVJ01",null,null,null,null,null,null,"RW601","University Hospital (Coventry) - RKB01"]
[null,null,null,null,null,null,null,null,null,null,null,null,null,null,null,null,null,null,null,null,"QUY","RA7","UNIVERSITY HOSPITALS BRISTOL AND WESTON NHS FOUNDATION TRUST","RA708","Bristol Eye Hospital - RA708",null,null,null,null,null,null,"RW603","University Hospital Aintree - REM21"]
[null,null,null,null,null,null,null,null,null,null,null,null,null,null,null,null,null,null,null,null,"QUY","RA7","UNIVERSITY HOSPITALS BRISTOL AND WESTON NHS FOUNDATION TRUST","RA723","Bristol Royal Hospital For Children - RA723",null,null,null,null,null,null,"RW604","University Hospital Lewisham - RJ224"]
[null,null,null,null,null,null,null,null,null,null,null,null,null,null,null,null,null,null,null,null,"QUY","RA7","UNIVERSITY HOSPITALS BRISTOL AND WESTON NHS FOUNDATION TRUST","RA701","Bristol Royal Infirmary - RA701",null,null,null,null,null,null,"RWA01","University Hospital Of North Tees - RVWAE"]
[null,null,null,null,null,null,null,null,null,null,null,null,null,null,null,null,null,null,null,null,"QUY","RA7","UNIVERSITY HOSPITALS BRISTOL AND WESTON NHS FOUNDATION TRUST","RA7C2","Weston General Hospital - RA7C2",null,null,null,null,null,null,"RWDDA","Warrington Hospital - RWWWH"]
[null,null,null,null,null,null,null,null,null,null,null,null,null,null,null,null,null,null,null,null,"QVV","RBD","DORSET COUNTY HOSPITAL NHS FOUNDATION TRUST","RBD01","Dorset County Hospital - RBD01",null,null,null,null,null,null,"RWDLA","Warwick Hospital - RJC02"]
[null,null,null,null,null,null,null,null,null,null,null,null,null,null,null,null,null,null,null,null,"QVV","R0D","UNIVERSITY HOSPITALS DORSET NHS FOUNDATION TRUST","R0D01","Poole Hospital - R0D01",null,null,null,null,null,null,"RWDLP","Watford General Hospital - RWG02"]
[null,null,null,null,null,null,null,null,null,null,null,null,null,null,null,null,null,null,null,null,"QVV","R0D","UNIVERSITY HOSPITALS DORSET NHS FOUNDATION TRUST","R0D02","Royal Bourenmouth Hospital - R0D02",null,null,null,null,null,null,"RWEAA","West Cornwall Hospital (Penzance) - REF01"]
[null,null,null,null,null,null,null,null,null,null,null,null,null,null,null,null,null,null,null,null,"QWE","RJ6","CROYDON HEALTH SERVICES NHS TRUST","RJ611","Croydon University Hospital - RJ611",null,null,null,null,null,null,"RWF03","West Cumberland Hospital - RNNBX"]
[null,null,null,null,null,null,null,null,null,null,null,null,null,null,null,null,null,null,null,null,"QWE","RJ6","CROYDON HEALTH SERVICES NHS TRUST","RJ6XXX","WiC_MIU - RJ6XXX",null,null,null,null,null,null,"RWFTW","West Middlesex University Hospital - RQM91"]
[null,null,null,null,null,null,null,null,null,null,null,null,null,null,null,null,null,null,null,null,"QWE","RVR","EPSOM AND ST HELIER UNIVERSITY HOSPITALS NHS TRUST","RVR50","Epsom Hospital - RVR50",null,null,null,null,null,null,"RWFXXX","West Suffolk Hospital - RGR50"]
[null,null,null,null,null,null,null,null,null,null,null,null,null,null,null,null,null,null,null,null,"QWE","RVR","EPSOM AND ST HELIER UNIVERSITY HOSPITALS NHS TRUST","RVR05","St Helier Hospital - RVR05",null,null,null,null,null,null,"RWG02","Western Eye Hospital - RYJ07"]
[null,null,null,null,null,null,null,null,null,null,null,null,null,null,null,null,null,null,null,null,"QWE","RAX","KINGSTON HOSPITAL NHS FOUNDATION TRUST","RAX01","Kingston Hospital - RAX01",null,null,null,null,null,null,"RWG08","Westmorland General Hospital - RTXBW"]
[null,null,null,null,null,null,null,null,null,null,null,null,null,null,null,null,null,null,null,null,"QWE","RAX","KINGSTON HOSPITAL NHS FOUNDATION TRUST","RAXXXX","WiC_MIU - RAXXXX",null,null,null,null,null,null,"RWH01","Weston General Hospital - RA7C2"]
[null,null,null,null,null,null,null,null,null,null,null,null,null,null,null,null,null,null,null,null,"QWE","RJ7","ST GEORGE'S UNIVERSITY HOSPITALS NHS FOUNDATION TRUST","RJ701","St George's Hospital (Tooting) - RJ701",null,null,null,null,null,null,"RWH20","Wexham Park Hospital - RDU50"]
[null,null,null,null,null,null,null,null,null,null,null,null,null,null,null,null,null,null,null,null,"QWO","RCF","AIREDALE NHS FOUNDATION TRUST","RCF22","Airedale General Hospital - RCF22",null,null,null,null,null,null,"RWJ09","Whipps Cross University Hospital - R1HKH"]
[null,null,null,null,null,null,null,null,null,null,null,null,null,null,null,null,null,null,null,null,"QWO","RAE","BRADFORD TEACHING HOSPITALS NHS FOUNDATION TRUST","RAE01","Bradford Royal Infirmary - RAE01",null,null,null,null,null,null,"RWP01","Whiston Hospital - RBN01"]
[null,null,null,null,null,null,null,null,null,null,null,null,null,null,null,null,null,null,null,null,"QWO","RWY","CALDERDALE AND HUDDERSFIELD NHS FOUNDATION TRUST","RWY02","Calderdale Royal Hospital - RWY02",null,null,null,null,null,null,"RWP31","Wic MIU - RH5XXX"]
[null,null,null,null,null,null,null,null,null,null,null,null,null,null,null,null,null,null,null,null,"QWO","RWY","CALDERDALE AND HUDDERSFIELD NHS FOUNDATION TRUST","RWY01","Huddersfield Royal Infirmary - RWY01",null,null,null,null,null,null,"RWP50","WiC_MIU - R1HXXX"]
[null,null,null,null,null,null,null,null,null,null,null,null,null,null,null,null,null,null,null,null,"QWO","RR8","LEEDS TEACHING HOSPITALS NHS TRUST","RR801","Leeds General Infirmary - RR801",null,null,null,null,null,null,"RWWHG","WiC_MIU - RA2XXX"]
[null,null,null,null,null,null,null,null,null,null,null,null,null,null,null,null,null,null,null,null,"QWO","RR8","LEEDS TEACHING HOSPITALS NHS TRUST","RR813","St James's University Hospital - RR813",null,null,null,null,null,null,"RWWWH","WiC_MIU - RALXXX"]
[null,null,null,null,null,null,null,null,null,null,null,null,null,null,null,null,null,null,null,null,"QWO","RXF","MID YORKSHIRE HOSPITALS NHS TRUST","RXF10","Dewsbury and District Hospital - RXF10",null,null,null,null,null,null,"RWY01","WiC_MIU - RAXXXX"]
[null,null,null,null,null,null,null,null,null,null,null,null,null,null,null,null,null,null,null,null,"QWO","RXF","MID YORKSHIRE HOSPITALS NHS TRUST","RXF05","Pinderfields General Hospital - RXF05",null,null,null,null,null,null,"RWY02","WiC_MIU - RBTXXX"]
[null,null,null,null,null,null,null,null,null,null,null,null,null,null,null,null,null,null,null,null,"QWO","RXF","MID YORKSHIRE HOSPITALS NHS TRUST","RXF03","Pontefract General Infirmary - RXF03",null,null,null,null,null,null,"RX1RA","WiC_MIU - RCDXXX"]
[null,null,null,null,null,null,null,null,null,null,null,null,null,null,null,null,null,null,null,null,"QWU","RLT","GEORGE ELIOT HOSPITAL NHS TRUST","RLT01","George Eliot Hospital - Acute Services - RLT01",null,null,null,null,null,null,"RXC01","WiC_MIU - RD1XXX"]
[null,null,null,null,null,null,null,null,null,null,null,null,null,null,null,null,null,null,null,null,"QWU","RJC","SOUTH WARWICKSHIRE NHS FOUNDATION TRUST","RJC02","Warwick Hospital - RJC02",null,null,null,null,null,null,"RXC02","WiC_MIU - RH8XXX"]
[null,null,null,null,null,null,null,null,null,null,null,null,null,null,null,null,null,null,null,null,"QWU","RKB","UNIVERSITY HOSPITALS COVENTRY AND WARWICKSHIRE NHS TRUST","RKB03","Hospital Of St Cross - RKB03",null,null,null,null,null,null,"RXF03","WiC_MIU - RHQXXX"]
[null,null,null,null,null,null,null,null,null,null,null,null,null,null,null,null,null,null,null,null,"QWU","RKB","UNIVERSITY HOSPITALS COVENTRY AND WARWICKSHIRE NHS TRUST","RKB01","University Hospital (Coventry) - RKB01",null,null,null,null,null,null,"RXF05","WiC_MIU - RHUXXX"]
[null,null,null,null,null,null,null,null,null,null,null,null,null,null,null,null,null,null,null,null,"QWU","RKB","UNIVERSITY HOSPITALS COVENTRY AND WARWICKSHIRE NHS TRUST","RKBXXX","WiC_MIU - RKBXXX",null,null,null,null,null,null,"RXF10","WiC_MIU - RJ1XXX"]
[null,null,null,null,null,null,null,null,null,null,null,null,null,null,null,null,null,null,null,null,"QXU","RTK","ASHFORD AND ST PETER'S HOSPITALS NHS FOUNDATION TRUST","RTK01","St Peter's Hospital - RTK01",null,null,null,null,null,null,"RXK01","WiC_MIU - RJ6XXX"]
[null,null,null,null,null,null,null,null,null,null,null,null,null,null,null,null,null,null,null,null,"QXU","RA2","ROYAL SURREY COUNTY HOSPITAL NHS FOUNDATION TRUST","RA201","Royal Surrey County Hospital - RA201",null,null,null,null,null,null,"RXK02","WiC_MIU - RJEXXX"]
[null,null,null,null,null,null,null,null,null,null,null,null,null,null,null,null,null,null,null,null,"QXU","RA2","ROYAL SURREY COUNTY HOSPITAL NHS FOUNDATION TRUST","RA2XXX","WiC_MIU - RA2XXX",null,null,null,null,null,null,"RXK03","WiC_MIU - RK5XXX"]
[null,null,null,null,null,null,null,null,null,null,null,null,null,null,null,null,null,null,null,null,"QXU","RTP","SURREY AND SUSSEX HEALTHCARE NHS TRUST","RTP04","East Surrey Hospital - RTP04",null,null,null,null,null,null,"RXL01","WiC_MIU - RK9XXX"]
[null,null,null,null,null,null,null,null,null,null,null,null,null,null,null,null,null,null,null,null,"QYG","RBS","ALDER HEY CHILDREN'S NHS FOUNDATION TRUST","RBS25","Alder Hey Children's NHS - RBS25",null,null,null,null,null,null,"RXN01","WiC_MIU - RKBXXX"]
[null,null,null,null,null,null,null,null,null,null,null,null,null,null,null,null,null,null,null,null,"QYG","RJN","EAST CHESHIRE NHS TRUST","RJN71","Macclesfield District General Hospital - RJN71",null,null,null,null,null,null,"RXN02","WiC_MIU - RQMXXX"]
[null,null,null,null,null,null,null,null,null,null,null,null,null,null,null,null,null,null,null,null,"QYG","REM","LIVERPOOL UNIVERSITY HOSPITALS NHS FOUNDATION TRUST","REMRQ","Royal Liverpool University Hospital - REMRQ",null,null,null,null,null,null,"RXQ02","WiC_MIU - RR7XXX"]
[null,null,null,null,null,null,null,null,null,null,null,null,null,null,null,null,null,null,null,null,"QYG","REM","LIVERPOOL UNIVERSITY HOSPITALS NHS FOUNDATION TRUST","REM21","University Hospital Aintree - REM21",null,null,null,null,null,null,"RXR20","WiC_MIU - RTFXXX"]
[null,null,null,null,null,null,null,null,null,null,null,null,null,null,null,null,null,null,null,null,"QYG","REP","LIVERPOOL WOMEN'S NHS FOUNDATION TRUST","REP01","Liverpool Womens Hospital - REP01",null,null,null,null,null,null,"RXWAS","WiC_MIU - RTRXXX"]
[null,null,null,null,null,null,null,null,null,null,null,null,null,null,null,null,null,null,null,null,"QYG","RBT","MID CHESHIRE HOSPITALS NHS FOUNDATION TRUST","RBT20","Leighton Hospital - RBT20",null,null,null,null,null,null,"RXWAT","WiC_MIU - RWFXXX"]
[null,null,null,null,null,null,null,null,null,null,null,null,null,null,null,null,null,null,null,null,"QYG","RBT","MID CHESHIRE HOSPITALS NHS FOUNDATION TRUST","RBTXXX","WiC_MIU - RBTXXX",null,null,null,null,null,null,"RYJ01","WiC_MIU - RYJXXX"]
[null,null,null,null,null,null,null,null,null,null,null,null,null,null,null,null,null,null,null,null,"QYG","RVY","SOUTHPORT AND ORMSKIRK HOSPITAL NHS TRUST","RVY02","Ormskirk and District General Hospital - RVY02",null,null,null,null,null,null,"RYJ02","William Harvey Hospital (Ashford) - RVV01"]
[null,null,null,null,null,null,null,null,null,null,null,null,null,null,null,null,null,null,null,null,"QYG","RVY","SOUTHPORT AND ORMSKIRK HOSPITAL NHS TRUST","RVY01","Southport and Formby District General Hospital - RVY01",null,null,null,null,null,null,"RYJ07","Worcestershire Royal Hospital - RWP50"]
[null,null,null,null,null,null,null,null,null,null,null,null,null,null,null,null,null,null,null,null,"QYG","RBN","ST HELENS AND KNOWSLEY TEACHING HOSPITALS NHS TRUST","RBN01","Whiston Hospital - RBN01",null,null,null,null,null,null,"RYJXXX","Worthing Hospital - RYR18"]
[null,null,null,null,null,null,null,null,null,null,null,null,null,null,null,null,null,null,null,null,"QYG","RWW","WARRINGTON AND HALTON TEACHING HOSPITALS NHS FOUNDATION TRUST","RWWHG","Halton Hospital - RWWHG",null,null,null,null,null,null,"RYR16","Wythenshawe Hospital - R0A07"]
[null,null,null,null,null,null,null,null,null,null,null,null,null,null,null,null,null,null,null,null,"QYG","RWW","WARRINGTON AND HALTON TEACHING HOSPITALS NHS FOUNDATION TRUST","RWWWH","Warrington Hospital - RWWWH",null,null,null,null,null,null,"RYR18","Yeovil District Hospital - RA430"]
[null,null,null,null,null,null,null,null,null,null,null,null,null,null,null,null,null,null,null,null,"QYG","RBL","WIRRAL UNIVERSITY TEACHING HOSPITAL NHS FOUNDATION TRUST","RBL14","Arrowe Park Hospital - RBL14",null,null,null,null,null,null,"X5M8P","York Hospital - RCB55"]